{"text_format":"2","workbook":"xlsx","n_sheets":15,"sheets":["Resumo postos","Planilha ","Planilha1","Ass. Adm. I","Ass. Adm. II","Ass. Adm. III","Ass. Gab. I","Ass. Sup. I","Ass. Sup. II","Analista","Assist. Condução","Ass. Cond. Hab. D","Assist. Condução - Hora Extra","Assist. Condução - H. Extra D","Despesas com Viagens - Diárias"],"not_rendered":{"charts":0,"images":3,"macros":0,"external_links":0,"defined_names":33,"comments":0,"pivot_tables":0},"unopened":[],"bounds":{"document_bytes":16777216,"sheet_cells":100000,"run_cost":"one","rows_first":2000,"rows_last":500,"rows_between":2000,"halvings":0,"cell_chars":16384,"cell_head_chars":4096},"cells_cut":0,"cells_raw":0,"read":"whole","date_system":"1900"}

{"sheet":"Resumo postos","index":0,"n_rows":35,"n_cols":10,"rows_kept":35,"cut":false,"hidden":false,"merged":[[5,0,5,9],[11,0,11,7],[14,0,14,7],[19,0,19,7],[23,0,23,7],[26,0,26,7],[27,0,27,9],[29,0,29,7],[32,2,32,7],[34,2,34,8],[8,0,10,0],[16,0,18,0],[21,0,22,0]]}
[]
[]
[]
[]
[]
[" RESUMO - PLANILHA DE CUSTOS E FORMAÇÃO DE PREÇOS "]
["Categoria","Subitem","Tipo de serviço (A)","Jornada de trabalho","Valor Estimado por empregado (B)","Qtde de empregados por posto(C )","Valor Estimado por posto (D) = (B x C)*","Qtde de postos\n(E)","Valor total  do serviço mensal (F) = (D x E)","Valor total  do serviço p/12 meses: (G) = (Fx12)"]
[]
["ASSISTENTE ADMINISTRATIVO","Administrativo - Nível I","Assistente Administrativo (CBO Vinculado 4110-10).","8hs/dia",8080.23,1,8080.23,9,72722.07,872664.84]
[null,"Administrativo - Nível II","Assistente Administrativo (CBO Vinculado 4110-10).","8hs/dia",10174.73,1,10174.73,3,30524.19,366290.28]
[null,"Administrativo - Nível III","Assistente Administrativo (CBO Vinculado 4110-10).","8hs/dia",12989.75,1,12989.75,4,51959,623508]
["Total Assistente Administrativo",{"$nulls":7},155205.26,1862463.12]
[]
["GABINETE","Assistente de Gabinete - Nível I","Assistente Administrativo (CBO Vinculado 4110-10).","8hs/dia",8080.23,1,8080.23,1,8080.23,96962.76]
["Total Assistente de Gabinete",{"$nulls":7},8080.23,96962.76]
[]
["SUPERINTENDÊNCIA","Assistente Superintendência - Nível I","Assistente Administrativo \n(CBO Vinculado 4110-10).","8hs/dia",8080.23,1,8080.23,3,24240.69,290888.28]
[null,"Assistente Superintendência - Nível II","Assistente Administrativo (CBO Vinculado 4110-10).","8hs/dia",14733.59,1,14733.59,1,14733.59,176803.08]
[null,"Analista Sênior","Assistente Administrativo (CBO Vinculado 4110-10).","8hs/dia",17132.67,1,17132.67,1,17132.67,205592.04]
["Total Assistente Superintendência",{"$nulls":7},56106.95,673283.4]
[]
["ASSISTENTE DE CONDUÇÃO","Assistente de Condução","Assistente de Condução (CBO Vinculado 3421-25).","8hs/dia",8080.23,1,8080.23,2,16160.46,193925.52]
[null,"Assistente de Condução - HAB. D","Assistente de Condução (CBO Vinculado 3421-25).","8hs/dia",8080.23,1,8080.23,1,8080.23,96962.76]
["Total Assistente de Condução",{"$nulls":7},24240.69,290888.28]
[]
["DIÁRIAS - ASSISTENTE DE CONDUÇÃO","Assistente de Condução","Despesas com Viagens","15diárias/mês",1857.65,1,1857.65,1,1857.65,22291.8]
["Total Diárias - Assistente de Condução",{"$nulls":7},1857.65,22291.8]
[]
["H. EXTRA - ASSISTENTE DE CONDUÇÃO","Assistente de Condução","Hora extra a 50%","30h/mês",1560,1,1560,1,1560,18720]
["Total Horas Extras a 50% - Assistente de Condução",{"$nulls":7},1560,18720]
[]
[]
[null,null,"Valor Total Mensal dos Serviços ",{"$nulls":5},247050.78]
[]
[null,null,"Valor Global para 12 meses",{"$nulls":6},2964609.36]

{"sheet":"Planilha ","index":1,"n_rows":25,"n_cols":9,"rows_kept":25,"cut":false,"hidden":false,"merged":[[1,1,1,8],[2,1,2,8],[4,3,4,8],[24,1,24,7],[5,1,6,1],[5,2,6,2],[5,3,6,3],[5,4,6,4],[5,5,6,5],[5,6,6,6],[5,7,6,7],[5,8,6,8]]}
[]
[null,"Processo nº 59530.001233/2024-60"]
[null,"Objeto: CONTRATAÇÃO DE EMPRESA ESPECIALIZADA NA PRESTAÇÃO DE SERVIÇOS DE APOIO À ADMINISTRAÇÃO E RECEPÇÃO, DE FORMA CONTÍNUA, A SEREM EXECUTADOS COM REGIME DE DEDICAÇÃO EXCLUSIVA DE MÃO DE OBRA, NAS DEPENDÊNCIAS DA 3ª SUPERINTENDÊNCIA REGIONAL DA CODEVASF -  PETROLINA/PE"]
[]
[null,null,null,"\n"]
[null,"ITEM","DISCRIMINAÇÃO","UNIDADE","Nº DE MESES","Nº DE POSTOS/MÊS","QUANT.","PREÇO UNITÁRIO","TOTAL"]
[]
[]
[null,"I.A","EQUIPE"]
[null,"1.0","ASSISTENTE ADMINISTRATIVO"]
[null,"1.1",{"$f":"'Resumo postos'!B9","v":"Administrativo - Nível I"},"mês",12,9,108,8080.23,872664.84]
[null,"1.2",{"$f":"'Resumo postos'!B10","v":"Administrativo - Nível II"},"mês",12,3,36,10174.73,366290.28]
[null,"1.3",{"$f":"'Resumo postos'!B11","v":"Administrativo - Nível III"},"mês",12,4,48,12989.75,623508]
[null,"2.0","ASSISTENTE DE GABINETE"]
[null,"2.1",{"$f":"'Resumo postos'!B14","v":"Assistente de Gabinete - Nível I"},"mês",12,1,12,8080.23,96962.76]
[null,"3.0","ASSISTENTE SUPERINTENDÊNCIA"]
[null,"3.1",{"$f":"'Resumo postos'!B17","v":"Assistente Superintendência - Nível I"},"mês",12,3,36,8080.23,290888.28]
[null,"3.2",{"$f":"'Resumo postos'!B18","v":"Assistente Superintendência - Nível II"},"mês",12,1,12,14733.59,176803.08]
[null,"3.3",{"$f":"'Resumo postos'!B19","v":"Analista Sênior"},"mês",12,1,12,17132.67,205592.04]
[null,"4.0","ASSISTENTE DE CONDUÇÃO"]
[null,"4.1",{"$f":"'Resumo postos'!B22","v":"Assistente de Condução"},"mês",12,2,24,8080.23,193925.52]
[null,"4.2",{"$f":"'Resumo postos'!B23","v":"Assistente de Condução - HAB. D"},"mês",12,1,12,8080.23,96962.76]
[null,"4.3","Diárias","mês",12,1,12,1857.65,22291.8]
[null,"4.4","Horas Extras","mês",12,1,12,1560,18720]
[null,"TOTAL GERAL:",{"$nulls":6},2964609.36]

{"sheet":"Planilha1","index":2,"n_rows":18,"n_cols":6,"rows_kept":18,"cut":false,"hidden":false,"merged":[[0,1,1,1],[0,2,1,2],[0,3,1,3],[0,4,1,4],[0,5,1,5]]}
[null,"ITEM","DISCRIMINAÇÃO","UNIDADE","Nº DE MESES","Nº DE POSTOS/MÊS"]
[]
[]
[null,"1.0","ASSISTENTE ADMINISTRATIVO"]
[null,"1.1",{"$f":"'Resumo postos'!B9","v":"Administrativo - Nível I"},"mês",12,9]
[null,"1.2",{"$f":"'Resumo postos'!B10","v":"Administrativo - Nível II"},"mês",12,3]
[null,"1.3",{"$f":"'Resumo postos'!B11","v":"Administrativo - Nível III"},"mês",12,4]
[null,"2.0","ASSISTENTE DE GABINETE"]
[null,"2.1",{"$f":"'Resumo postos'!B14","v":"Assistente de Gabinete - Nível I"},"mês",12,1]
[null,"3.0","ASSISTENTE SUPERINTENDÊNCIA"]
[null,"3.1",{"$f":"'Resumo postos'!B17","v":"Assistente Superintendência - Nível I"},"mês",12,3]
[null,"3.2",{"$f":"'Resumo postos'!B18","v":"Assistente Superintendência - Nível II"},"mês",12,1]
[null,"3.3",{"$f":"'Resumo postos'!B19","v":"Analista Sênior"},"mês",12,1]
[null,"4.0","ASSISTENTE DE CONDUÇÃO"]
[null,"4.1",{"$f":"'Resumo postos'!B22","v":"Assistente de Condução"},"mês",12,2]
[null,"4.2",{"$f":"'Resumo postos'!B23","v":"Assistente de Condução - HAB. D"},"mês",12,1]
[null,"4.3","Diárias","mês",12,1]
[null,"4.4","Horas Extras","mês",12,1]

{"sheet":"Ass. Adm. I","index":3,"n_rows":148,"n_cols":7,"rows_kept":148,"cut":false,"hidden":false,"merged":[[4,0,4,6],[5,0,5,6],[7,1,7,3],[7,4,7,6],[8,1,8,3],[8,4,8,6],[9,0,9,6],[11,1,11,4],[11,5,11,6],[12,1,12,4],[12,5,12,6],[13,1,13,4],[13,5,13,6],[14,1,14,4],[14,5,14,6],[16,0,16,6],[18,0,18,1],[18,2,18,3],[18,4,18,6],[19,0,19,1],[19,2,19,3],[19,4,19,6],[21,0,21,6],[23,0,23,6],[24,0,24,6],[26,0,26,6],[34,0,34,6],[40,0,40,6],[65,1,65,3],[67,1,67,4],[70,0,70,6],[78,0,78,6],[88,0,88,6],[107,0,107,6],[113,0,113,6],[119,0,119,6],[130,0,130,6],[140,0,140,5],[142,0,142,2],[143,0,143,2],[144,0,144,2],[145,0,145,2],[146,0,146,2],[147,0,147,2],[133,10,134,11]]}
[]
[]
[]
[]
[]
[" PLANILHA DE CUSTOS E FORMAÇÃO DE PREÇOS "]
[]
[null,"Nº Processo",null,null,"59530.001233/2024-60"]
[null,"Licitação nº"]
["DISCRIMINAÇÃO DOS SERVIÇOS (dados referentes à contratação)"]
[]
["A","Ano do Acordo, Convenção ou  Dissídio Coletivo",null,null,null,"2024 - PE000123/2024"]
["B","Município/UF",null,null,null,"Petrolina/PE"]
["C","Data de Registro no MTE",null,null,null,"20/02/2024"]
["D","Nº de meses de execução contratual",null,null,null,"12 (doze) meses"]
[]
["IDENTIFICAÇÃO DO SERVIÇO"]
[]
["Tipo de Serviço",null,"Unidade de Medida",null,"Quantidade total a contratar (em função da unidade de medida)"]
["Assistente Administrativo - Nível I (A3)",null,"Posto de serviço",null,1]
[]
["1. MÓDULOS"]
[]
["MÃO DE OBRA"]
["Mão de obra vinculada à execução contratual"]
[]
["Dados para composição dos custos referente à mão de obra"]
[1,"Tipo de serviço ",{"$nulls":4},{"$f":"A20","v":"Assistente Administrativo - Nível I (A3)"}]
[2,"Classificação Brasileira de Ocupações (CBO)",{"$nulls":4},"4110-10 "]
[3,"Salário Normativo da Categoria Profissional",{"$nulls":4},3378.33]
[4,"Categoria profissional  (vinculada à execução contratual)",{"$nulls":4},"Administrativo"]
[5,"Data-Base da categoria (dia/mês/ano)",{"$nulls":4},"1º/01/2024"]
[]
[]
["MÓDULO  1: COMPOSIÇÃO DA REMUNERAÇÃO"]
[]
[1,"Composição da Remuneração",{"$nulls":4},"Valor (R$)"]
["A","Salário Base",{"$nulls":4},3378.33]
[null,"Total ",{"$nulls":4},3378.33]
[]
["MÓDULO 2: ENCARGOS E BENEFÍCIOS ANUAIS, MENSAIS E DIÁRIOS"]
[]
["Submódulo 2.1 - 13º (décimo terceiro) Salário, Férias e Adicional de Férias"]
[]
["2.1"," 13º (décimo terceiro) Salário, Férias e Adicional de Férias",null,null,null,"%","Valor (R$)"]
["A","13º (décimo terceiro) Salário",null,null,null,0.0833,281.41]
["B","Férias e Adicional de Férias",null,null,null,0.1111,375.33]
["TOTAL",{"$nulls":4},0.1944,656.74]
[]
["Submódulo 2.2 - Encargos previdenciários (GPS), Fundo de Garantia por tempo de Serviço (FGTS) e outras contribuições:"]
[]
["2.2","GPS, FGTS e outras contribuiçoes",null,null,null,"%","Valor (R$)"]
["A","INSS",null,null,null,0.2,807.01]
["B","Salário Educação",null,null,null,0.025,100.88]
["C","Seguro Acidente do Trabalho/SAT/INSS",null,null,null,0.03,121.05]
["D","SESI/SESC",null,null,null,0.015,60.53]
["E","SENAI/SENAC",null,null,null,0.01,40.35]
["F","INCRA",null,null,null,0.002,8.07]
["G","FGTS",null,null,null,0.08,322.81]
["H","SEBRAE",null,null,null,0.006,24.21]
["TOTAL",{"$nulls":4},0.368,1484.91]
[]
["Submódulo 2.3 - Benefícios Mensais e Diários"]
[]
["2.3","Benefícios Mensais e Diários",{"$nulls":4},"Valor (R$)"]
["A","Transporte ",{"$nulls":4},17.3]
["B","Auxílio alimentação (Cláusula 11ª CCT 2024)",{"$nulls":4},242]
["C","Outros (Cobertura Social - Cláusula 15ª CCT 2024) ",{"$nulls":4},74.85]
[null,"Total de Benefícios mensais e diários",{"$nulls":4},334.15]
[]
["QUADRO RESUMO DO MÓDULO 2 - Encargos e Benefícios anuais, mensais e diários"]
[]
[2,"Encargos e Benefícios anuais, mensais e diários",{"$nulls":4},"Valor (R$)"]
["2.1","13º (décimo terceiro) Salário, Férias e Adicional de Férias",{"$nulls":4},656.74]
["2.2","GPS, FGTS e outras contribuiçoes",{"$nulls":4},1484.91]
["2.3","Benefícios Mensais e Diários",{"$nulls":4},334.15]
["TOTAL",{"$nulls":5},2475.8]
[]
["MÓDULO 3 - PROVISÃO PARA RESCISÃO"]
[]
[3,"Provisão para Rescisão",{"$nulls":4},"Valor (R$)"]
["A","Aviso prévio indenizado",{"$nulls":4},160.55]
["B","Multa do FGTS e contribuição social sobre o Aviso Prévio Indenizado",{"$nulls":4},66.27]
["C","Aviso Prévio Trabalhado",{"$nulls":4},200.31]
["D","Multa do FGTS e contribuição social sobre o Aviso Prévio Trabalhado",{"$nulls":4},66.27]
["E","Demissão com Justa Causa",{"$nulls":4},-8.21]
["TOTAL",{"$nulls":5},485.19]
[]
["MÓDULO 4 - CUSTO DE REPOSIÇÃO DO PROFISSIONAL AUSENTE"]
[]
["Submódulo 4.1 - Ausências Legais"]
["4.1","Ausências legais",null,null,null,"Dias/Ano","Valor (R$)"]
["A","Férias ",null,null,null,20.9589,369.07]
["B","Ausência justificada",null,null,null,1,17.61]
["C","Acidente de trabalho",null,null,null,0.9659,17.01]
["D","Afastamento por doença",null,null,null,3.4932,61.51]
["E","Consulta médica filho",null,null,null,0.2688,4.73]
["F","Óbitos na família",null,null,null,0.0427,0.75]
["G","Casamento",null,null,null,0.0355,0.63]
["H","Doação de Sangue",null,null,null,0.02,0.35]
["I","Testemunho",null,null,null,0.004,0.07]
["J","Paternidade",null,null,null,0.1997,3.52]
["K","Maternidade",null,null,null,2.4753,43.59]
["L","Consulta pré-natal",null,null,null,0.0098,0.17]
["TOTAL",{"$nulls":4},29.4738,519.01]
[]
[]
["QUADRO RESUMO DO MÓDULO 4 - Custo de Reposição do Profissional Ausente"]
[]
[4,"Custo de Reposição do Profissional Ausente",{"$nulls":4},"Valor (R$)"]
["4.1","Ausências legais",{"$nulls":4},519.01]
["TOTAL",{"$nulls":5},519.01]
[]
["MÓDULO 5 - INSUMOS DIVERSOS"]
[]
[5,"Insumos Diversos",{"$nulls":4},"Valor (R$)"]
["A","Uniformes",{"$nulls":4},0]
[null,"Total ",{"$nulls":4},0]
[]
["MÓDULO 6 - CUSTOS INDIRETOS, TRIBUTOS E LUCRO"]
[]
[6,"Custos Indiretos, Tributos e Lucro",null,null,null,"%","Valor (R$)"]
["A","Custos Indiretos",null,null,null,0.025,171.46]
["B","Lucro",null,null,null,0.05,351.49]
["C","Tributos"]
["c.1","COFINS",null,null,null,0.03,242.41]
["c.2","PIS",null,null,null,0.0065,52.52]
["c.3","ISSQN",null,null,null,0.05,404.02]
[null,"Total",null,null,null,0.1615,1221.9]
[]
["2.  QUADRO -  RESUMO DO CUSTO POR EMPREGADO"]
[]
[null,"Mão de obra vinculada à execução contratual (valor por empregado)",{"$nulls":4},"Valor (R$)"]
["A","Módulo 1 - Composição da Remuneração",{"$nulls":4},3378.33]
["B","Módulo 2 - Encargos e Benefícios Anuais, Mensais e Diários",{"$nulls":4},2475.8]
["C","Módulo 3 - Provisão para recisão",{"$nulls":4},485.19]
["D","Módulo 4 - Custo de Reposição do Profissional Ausente",{"$nulls":4},519.01]
["E","Módulo 5 - Insumos diversos",{"$nulls":4},0]
["Subtotal ( A + B +C + D + E)",{"$nulls":5},6858.33]
["F","Módulo 6  - Custos indiretos, Tributos e lucro",{"$nulls":4},1221.9]
["Valor total por empregado",{"$nulls":5},8080.23]
[]
["P0 = (MÓD 1+MÓD 2+MÓD 3+MÓD 4+MÓD 5) + (CI) + (L)",null,null,null,7381.28]
["P1 = P0/(1 - (pis+confins+iss))",null,null,null,8080.23]
["T = P1 - P0",null,null,null,698.95]
["COFINS = ((cofins)/(pis+cofins+iss) x T",null,null,null,242.41]
["PIS = ((pis)/(pis+cofins+iss) x T",null,null,null,52.52]
["ISS = (iss/(pis+cofins+iss)) x T",null,null,null,404.02]

{"sheet":"Ass. Adm. II","index":4,"n_rows":148,"n_cols":7,"rows_kept":148,"cut":false,"hidden":false,"merged":[[5,0,5,6],[7,1,7,3],[7,4,7,6],[8,1,8,3],[8,4,8,6],[9,0,9,6],[11,1,11,4],[11,5,11,6],[12,1,12,4],[12,5,12,6],[13,1,13,4],[13,5,13,6],[14,1,14,4],[14,5,14,6],[16,0,16,6],[18,0,18,1],[18,2,18,3],[18,4,18,6],[19,0,19,1],[19,2,19,3],[19,4,19,6],[21,0,21,6],[23,0,23,6],[24,0,24,6],[26,0,26,6],[34,0,34,6],[40,0,40,6],[65,1,65,3],[67,1,67,4],[70,0,70,6],[78,0,78,6],[88,0,88,6],[107,0,107,6],[113,0,113,6],[119,0,119,6],[130,0,130,6],[140,0,140,5],[142,0,142,2],[143,0,143,2],[144,0,144,2],[145,0,145,2],[146,0,146,2],[147,0,147,2],[133,10,134,11]]}
[]
[]
[]
[]
[]
[" PLANILHA DE CUSTOS E FORMAÇÃO DE PREÇOS "]
[]
[null,{"$f":"'Ass. Adm. III'!B8","v":"Nº Processo"},null,null,{"$f":"'Ass. Adm. III'!E8","v":"59530.001233/2024-60"}]
[null,{"$f":"'Ass. Adm. III'!B9","v":"Licitação nº"}]
["DISCRIMINAÇÃO DOS SERVIÇOS (dados referentes à contratação)"]
[]
["A","Ano do Acordo, Convenção ou  Dissídio Coletivo",null,null,null,"2024 - PE000123/2024"]
["B","Município/UF",null,null,null,"Petrolina/PE"]
["C","Data de Registro no MTE",null,null,null,"20/02/2024"]
["D","Nº de meses de execução contratual",null,null,null,"12 (doze) meses"]
[]
["IDENTIFICAÇÃO DO SERVIÇO"]
[]
["Tipo de Serviço",null,"Unidade de Medida",null,"Quantidade total a contratar (em função da unidade de medida)"]
["Assistente Administrativo-Nivel II (A2)",null,"Posto de serviço",null,1]
[]
["1. MÓDULOS"]
[]
["MÃO DE OBRA"]
["Mão de obra vinculada à execução contratual"]
[]
["Dados para composição dos custos referente à mão de obra"]
[1,"Tipo de serviço ",{"$nulls":4},{"$f":"A20","v":"Assistente Administrativo-Nivel II (A2)"}]
[2,"Classificação Brasileira de Ocupações (CBO)",{"$nulls":4},"4110-10 "]
[3,"Salário Normativo da Categoria Profissional",{"$nulls":4},4316.73]
[4,"Categoria profissional  (vinculada à execução contratual)",{"$nulls":4},"Administrativo"]
[5,"Data-Base da categoria (dia/mês/ano)",{"$nulls":4},{"$f":"'Ass. Adm. I'!G32","v":"1º/01/2024"}]
[]
[]
["MÓDULO  1: COMPOSIÇÃO DA REMUNERAÇÃO"]
[]
[1,"Composição da Remuneração",{"$nulls":4},"Valor (R$)"]
["A","Salário Base",{"$nulls":4},4316.73]
[null,"Total ",{"$nulls":4},4316.73]
[]
["MÓDULO 2: ENCARGOS E BENEFÍCIOS ANUAIS, MENSAIS E DIÁRIOS"]
[]
["Submódulo 2.1 - 13º (décimo terceiro) Salário, Férias e Adicional de Férias"]
[]
["2.1"," 13º (décimo terceiro) Salário, Férias e Adicional de Férias",null,null,null,"%","Valor (R$)"]
["A","13º (décimo terceiro) Salário",null,null,null,0.0833,359.58]
["B","Férias e Adicional de Férias",null,null,null,0.1111,479.59]
["TOTAL",{"$nulls":4},0.1944,839.17]
[]
["Submódulo 2.2 - Encargos previdenciários (GPS), Fundo de Garantia por tempo de Serviço (FGTS) e outras contribuições:"]
[]
["2.2","GPS, FGTS e outras contribuiçoes",null,null,null,"%","Valor (R$)"]
["A","INSS",null,null,null,0.2,1031.18]
["B","Salário Educação",null,null,null,0.025,128.9]
["C","Seguro Acidente do Trabalho/SAT/INSS",null,null,null,0.03,154.68]
["D","SESI/SESC",null,null,null,0.015,77.34]
["E","SENAI/SENAC",null,null,null,0.01,51.56]
["F","INCRA",null,null,null,0.002,10.31]
["G","FGTS",null,null,null,0.08,412.47]
["H","SEBRAE",null,null,null,0.006,30.94]
["TOTAL",{"$nulls":4},0.368,1897.38]
[]
["Submódulo 2.3 - Benefícios Mensais e Diários"]
[]
["2.3","Benefícios Mensais e Diários",{"$nulls":4},"Valor (R$)"]
["A","Transporte ",{"$nulls":4},0]
["B","Auxílio alimentação (Cláusula 11ª CCT 2024)",{"$nulls":4},242]
["C","Outros (Cobertura Social - Cláusula 15ª CCT 2024) ",{"$nulls":4},74.85]
[null,"Total de Benefícios mensais e diários",{"$nulls":4},316.85]
[]
["QUADRO RESUMO DO MÓDULO 2 - Encargos e Benefícios anuais, mensais e diários"]
[]
[2,"Encargos e Benefícios anuais, mensais e diários",{"$nulls":4},"Valor (R$)"]
["2.1","13º (décimo terceiro) Salário, Férias e Adicional de Férias",{"$nulls":4},839.17]
["2.2","GPS, FGTS e outras contribuiçoes",{"$nulls":4},1897.38]
["2.3","Benefícios Mensais e Diários",{"$nulls":4},316.85]
["TOTAL",{"$nulls":5},3053.4]
[]
["MÓDULO 3 - PROVISÃO PARA RESCISÃO"]
[]
[3,"Provisão para Rescisão",{"$nulls":4},"Valor (R$)"]
["A","Aviso prévio indenizado",{"$nulls":4},201.37]
["B","Multa do FGTS e contribuição social sobre o Aviso Prévio Indenizado",{"$nulls":4},84.68]
["C","Aviso Prévio Trabalhado",{"$nulls":4},252.18]
["D","Multa do FGTS e contribuição social sobre o Aviso Prévio Trabalhado",{"$nulls":4},84.68]
["E","Demissão com Justa Causa",{"$nulls":4},-10.49]
["TOTAL",{"$nulls":5},612.42]
[]
["MÓDULO 4 - CUSTO DE REPOSIÇÃO DO PROFISSIONAL AUSENTE"]
[]
["Submódulo 4.1 - Ausências Legais"]
["4.1","Ausências legais",null,null,null,"Dias/Ano","Valor (R$)"]
["A","Férias ",null,null,null,20.9589,464.74]
["B","Ausência justificada",null,null,null,1,22.17]
["C","Acidente de trabalho",null,null,null,0.9659,21.42]
["D","Afastamento por doença",null,null,null,3.4932,77.46]
["E","Consulta médica filho",null,null,null,0.2688,5.96]
["F","Óbitos na família",null,null,null,0.0427,0.95]
["G","Casamento",null,null,null,0.0355,0.79]
["H","Doação de Sangue",null,null,null,0.02,0.44]
["I","Testemunho",null,null,null,0.004,0.09]
["J","Paternidade",null,null,null,0.1997,4.43]
["K","Maternidade",null,null,null,2.4753,54.89]
["L","Consulta pré-natal",null,null,null,0.0098,0.22]
["TOTAL",{"$nulls":4},29.4738,653.56]
[]
[]
["QUADRO RESUMO DO MÓDULO 4 - Custo de Reposição do Profissional Ausente"]
[]
[4,"Custo de Reposição do Profissional Ausente",{"$nulls":4},"Valor (R$)"]
["4.1","Ausências legais",{"$nulls":4},653.56]
["TOTAL",{"$nulls":5},653.56]
[]
["MÓDULO 5 - INSUMOS DIVERSOS"]
[]
[5,"Insumos Diversos",{"$nulls":4},"Valor (R$)"]
["A","Uniformes"]
[null,"Total ",{"$nulls":4},0]
[]
["MÓDULO 6 - CUSTOS INDIRETOS, TRIBUTOS E LUCRO"]
[]
[6,"Custos Indiretos, Tributos e Lucro",null,null,null,"%","Valor (R$)"]
["A","Custos Indiretos",null,null,null,0.025,215.9]
["B","Lucro",null,null,null,0.05,442.6]
["C","Tributos"]
["c.1","COFINS",null,null,null,0.03,305.24]
["c.2","PIS",null,null,null,0.0065,66.14]
["c.3","ISSQN",null,null,null,0.05,508.74]
[null,"Total",null,null,null,0.1615,1538.62]
[]
["2.  QUADRO -  RESUMO DO CUSTO POR EMPREGADO"]
[]
[null,"Mão de obra vinculada à execução contratual (valor por empregado)",{"$nulls":4},"Valor (R$)"]
["A","Módulo 1 - Composição da Remuneração",{"$nulls":4},4316.73]
["B","Módulo 2 - Encargos e Benefícios Anuais, Mensais e Diários",{"$nulls":4},3053.4]
["C","Módulo 3 - Provisão para recisão",{"$nulls":4},612.42]
["D","Módulo 4 - Custo de Reposição do Profissional Ausente",{"$nulls":4},653.56]
["E","Módulo 5 - Insumos diversos",{"$nulls":4},0]
["Subtotal ( A + B +C + D + E)",{"$nulls":5},8636.11]
["F","Módulo 6  - Custos indiretos, Tributos e lucro",{"$nulls":4},1538.62]
["Valor total por empregado",{"$nulls":5},10174.73]
[]
["P0 = (MÓD 1+MÓD 2+MÓD 3+MÓD 4+MÓD 5) + (CI) + (L)",null,null,null,9294.61]
["P1 = P0/(1 - (pis+confins+iss))",null,null,null,10174.73]
["T = P1 - P0",null,null,null,880.12]
["COFINS = ((cofins)/(pis+cofins+iss) x T",null,null,null,305.24]
["PIS = ((pis)/(pis+cofins+iss) x T",null,null,null,66.14]
["ISS = (iss/(pis+cofins+iss)) x T",null,null,null,508.74]

{"sheet":"Ass. Adm. III","index":5,"n_rows":148,"n_cols":7,"rows_kept":148,"cut":false,"hidden":false,"merged":[[4,0,4,6],[5,0,5,6],[7,1,7,3],[7,4,7,6],[8,1,8,3],[8,4,8,6],[9,0,9,6],[11,1,11,4],[11,5,11,6],[12,1,12,4],[12,5,12,6],[13,1,13,4],[13,5,13,6],[14,1,14,4],[14,5,14,6],[16,0,16,6],[18,0,18,1],[18,2,18,3],[18,4,18,6],[19,0,19,1],[19,2,19,3],[19,4,19,6],[21,0,21,6],[23,0,23,6],[24,0,24,6],[26,0,26,6],[34,0,34,6],[40,0,40,6],[65,1,65,3],[67,1,67,4],[70,0,70,6],[78,0,78,6],[88,0,88,6],[107,0,107,6],[113,0,113,6],[119,0,119,6],[130,0,130,6],[140,0,140,5],[142,0,142,2],[143,0,143,2],[144,0,144,2],[145,0,145,2],[146,0,146,2],[147,0,147,2],[133,10,134,11]]}
[]
[]
[]
[]
[]
[" PLANILHA DE CUSTOS E FORMAÇÃO DE PREÇOS "]
[]
[null,"Nº Processo",null,null,{"$f":"'Ass. Adm. I'!E8","v":"59530.001233/2024-60"}]
[null,"Licitação nº"]
["DISCRIMINAÇÃO DOS SERVIÇOS (dados referentes à contratação)"]
[]
["A","Ano do Acordo, Convenção ou  Dissídio Coletivo",null,null,null,"2024 - PE000123/2024"]
["B","Município/UF",null,null,null,"Petrolina/PE"]
["C","Data de Registro no MTE",null,null,null,"20/02/2024"]
["D","Nº de meses de execução contratual",null,null,null,"12 (doze) meses"]
[]
["IDENTIFICAÇÃO DO SERVIÇO"]
[]
["Tipo de Serviço",null,"Unidade de Medida",null,"Quantidade total a contratar (em função da unidade de medida)"]
["Assistente Administrativo-Nivel III (A1)",null,"Posto de serviço",null,1]
[]
["1. MÓDULOS"]
[]
["MÃO DE OBRA"]
["Mão de obra vinculada à execução contratual"]
[]
["Dados para composição dos custos referente à mão de obra"]
[1,"Tipo de serviço ",{"$nulls":4},{"$f":"A20","v":"Assistente Administrativo-Nivel III (A1)"}]
[2,"Classificação Brasileira de Ocupações (CBO)",{"$nulls":4},"4110-10 "]
[3,"Salário Normativo da Categoria Profissional",{"$nulls":4},5563.94]
[4,"Categoria profissional  (vinculada à execução contratual)",{"$nulls":4},"Administrativo"]
[5,"Data-Base da categoria (dia/mês/ano)",{"$nulls":4},{"$f":"'Ass. Adm. I'!G32","v":"1º/01/2024"}]
[]
[]
["MÓDULO  1: COMPOSIÇÃO DA REMUNERAÇÃO"]
[]
[1,"Composição da Remuneração",{"$nulls":4},"Valor (R$)"]
["A","Salário Base",{"$nulls":4},5563.94]
[null,"Total ",{"$nulls":4},5563.94]
[]
["MÓDULO 2: ENCARGOS E BENEFÍCIOS ANUAIS, MENSAIS E DIÁRIOS"]
[]
["Submódulo 2.1 - 13º (décimo terceiro) Salário, Férias e Adicional de Férias"]
[]
["2.1"," 13º (décimo terceiro) Salário, Férias e Adicional de Férias",null,null,null,"%","Valor (R$)"]
["A","13º (décimo terceiro) Salário",null,null,null,0.0833,463.48]
["B","Férias e Adicional de Férias",null,null,null,0.1111,618.15]
["TOTAL",{"$nulls":4},0.1944,1081.63]
[]
["Submódulo 2.2 - Encargos previdenciários (GPS), Fundo de Garantia por tempo de Serviço (FGTS) e outras contribuições:"]
[]
["2.2","GPS, FGTS e outras contribuiçoes",null,null,null,"%","Valor (R$)"]
["A","INSS",null,null,null,0.2,1329.11]
["B","Salário Educação",null,null,null,0.025,166.14]
["C","Seguro Acidente do Trabalho/SAT/INSS",null,null,null,0.03,199.37]
["D","SESI/SESC",null,null,null,0.015,99.68]
["E","SENAI/SENAC",null,null,null,0.01,66.46]
["F","INCRA",null,null,null,0.002,13.29]
["G","FGTS",null,null,null,0.08,531.65]
["H","SEBRAE",null,null,null,0.006,39.87]
["TOTAL",{"$nulls":4},0.368,2445.57]
[]
["Submódulo 2.3 - Benefícios Mensais e Diários"]
[]
["2.3","Benefícios Mensais e Diários",{"$nulls":4},"Valor (R$)"]
["A","Transporte ",{"$nulls":4},0]
["B","Auxílio alimentação (Cláusula 11ª CCT 2024)",{"$nulls":4},242]
["C","Outros (Cobertura Social - Cláusula 15ª CCT 2024) ",{"$nulls":4},74.85]
[null,"Total de Benefícios mensais e diários",{"$nulls":4},316.85]
[]
["QUADRO RESUMO DO MÓDULO 2 - Encargos e Benefícios anuais, mensais e diários"]
[]
[2,"Encargos e Benefícios anuais, mensais e diários",{"$nulls":4},"Valor (R$)"]
["2.1","13º (décimo terceiro) Salário, Férias e Adicional de Férias",{"$nulls":4},1081.63]
["2.2","GPS, FGTS e outras contribuiçoes",{"$nulls":4},2445.57]
["2.3","Benefícios Mensais e Diários",{"$nulls":4},316.85]
["TOTAL",{"$nulls":5},3844.05]
[]
["MÓDULO 3 - PROVISÃO PARA RESCISÃO"]
[]
[3,"Provisão para Rescisão",{"$nulls":4},"Valor (R$)"]
["A","Aviso prévio indenizado",{"$nulls":4},256.42]
["B","Multa do FGTS e contribuição social sobre o Aviso Prévio Indenizado",{"$nulls":4},109.15]
["C","Aviso Prévio Trabalhado",{"$nulls":4},321.91]
["D","Multa do FGTS e contribuição social sobre o Aviso Prévio Trabalhado",{"$nulls":4},109.15]
["E","Demissão com Justa Causa",{"$nulls":4},-13.52]
["TOTAL",{"$nulls":5},783.11]
[]
["MÓDULO 4 - CUSTO DE REPOSIÇÃO DO PROFISSIONAL AUSENTE"]
[]
["Submódulo 4.1 - Ausências Legais"]
["4.1","Ausências legais",null,null,null,"Dias/Ano","Valor (R$)"]
["A","Férias ",null,null,null,20.9589,593.31]
["B","Ausência justificada",null,null,null,1,28.31]
["C","Acidente de trabalho",null,null,null,0.9659,27.34]
["D","Afastamento por doença",null,null,null,3.4932,98.89]
["E","Consulta médica filho",null,null,null,0.2688,7.61]
["F","Óbitos na família",null,null,null,0.0427,1.21]
["G","Casamento",null,null,null,0.0355,1]
["H","Doação de Sangue",null,null,null,0.02,0.57]
["I","Testemunho",null,null,null,0.004,0.11]
["J","Paternidade",null,null,null,0.1997,5.65]
["K","Maternidade",null,null,null,2.4753,70.07]
["L","Consulta pré-natal",null,null,null,0.0098,0.28]
["TOTAL",{"$nulls":4},29.4738,834.35]
[]
[]
["QUADRO RESUMO DO MÓDULO 4 - Custo de Reposição do Profissional Ausente"]
[]
[4,"Custo de Reposição do Profissional Ausente",{"$nulls":4},"Valor (R$)"]
["4.1","Ausências legais",{"$nulls":4},834.35]
["TOTAL",{"$nulls":5},834.35]
[]
["MÓDULO 5 - INSUMOS DIVERSOS"]
[]
[5,"Insumos Diversos",{"$nulls":4},"Valor (R$)"]
["A","Uniformes",{"$nulls":4},0]
[null,"Total ",{"$nulls":4},0]
[]
["MÓDULO 6 - CUSTOS INDIRETOS, TRIBUTOS E LUCRO"]
[]
[6,"Custos Indiretos, Tributos e Lucro",null,null,null,"%","Valor (R$)"]
["A","Custos Indiretos",null,null,null,0.025,275.64]
["B","Lucro",null,null,null,0.05,565.05]
["C","Tributos"]
["c.1","COFINS",null,null,null,0.03,389.69]
["c.2","PIS",null,null,null,0.0065,84.43]
["c.3","ISSQN",null,null,null,0.05,649.49]
[null,"Total",null,null,null,0.1615,1964.3]
[]
["2.  QUADRO -  RESUMO DO CUSTO POR EMPREGADO"]
[]
[null,"Mão de obra vinculada à execução contratual (valor por empregado)",{"$nulls":4},"Valor (R$)"]
["A","Módulo 1 - Composição da Remuneração",{"$nulls":4},5563.94]
["B","Módulo 2 - Encargos e Benefícios Anuais, Mensais e Diários",{"$nulls":4},3844.05]
["C","Módulo 3 - Provisão para recisão",{"$nulls":4},783.11]
["D","Módulo 4 - Custo de Reposição do Profissional Ausente",{"$nulls":4},834.35]
["E","Módulo 5 - Insumos diversos",{"$nulls":4},0]
["Subtotal ( A + B +C + D + E)",{"$nulls":5},11025.45]
["F","Módulo 6  - Custos indiretos, Tributos e lucro",{"$nulls":4},1964.3]
["Valor total por empregado",{"$nulls":5},12989.75]
[]
["P0 = (MÓD 1+MÓD 2+MÓD 3+MÓD 4+MÓD 5) + (CI) + (L)",null,null,null,11866.14]
["P1 = P0/(1 - (pis+confins+iss))",null,null,null,12989.75]
["T = P1 - P0",null,null,null,1123.61]
["COFINS = ((cofins)/(pis+cofins+iss) x T",null,null,null,389.69]
["PIS = ((pis)/(pis+cofins+iss) x T",null,null,null,84.43]
["ISS = (iss/(pis+cofins+iss)) x T",null,null,null,649.49]

{"sheet":"Ass. Gab. I","index":6,"n_rows":148,"n_cols":7,"rows_kept":148,"cut":false,"hidden":false,"merged":[[4,0,4,6],[5,0,5,6],[7,1,7,3],[7,4,7,6],[8,1,8,3],[8,4,8,6],[9,0,9,6],[11,1,11,4],[11,5,11,6],[12,1,12,4],[12,5,12,6],[13,1,13,4],[13,5,13,6],[14,1,14,4],[14,5,14,6],[16,0,16,6],[18,0,18,1],[18,2,18,3],[18,4,18,6],[19,0,19,1],[19,2,19,3],[19,4,19,6],[21,0,21,6],[23,0,23,6],[24,0,24,6],[26,0,26,6],[34,0,34,6],[40,0,40,6],[65,1,65,3],[67,1,67,4],[70,0,70,6],[78,0,78,6],[88,0,88,6],[107,0,107,6],[113,0,113,6],[119,0,119,6],[130,0,130,6],[140,0,140,5],[142,0,142,2],[143,0,143,2],[144,0,144,2],[145,0,145,2],[146,0,146,2],[147,0,147,2]]}
[]
[]
[]
[]
[]
[" PLANILHA DE CUSTOS E FORMAÇÃO DE PREÇOS "]
[]
[null,{"$f":"'Ass. Adm. III'!B8","v":"Nº Processo"},null,null,{"$f":"'Ass. Adm. III'!E8","v":"59530.001233/2024-60"}]
[null,{"$f":"'Ass. Adm. III'!B9","v":"Licitação nº"}]
["DISCRIMINAÇÃO DOS SERVIÇOS (dados referentes à contratação)"]
[]
["A","Ano do Acordo, Convenção ou  Dissídio Coletivo",null,null,null,"2024 - PE000123/2024"]
["B","Município/UF",null,null,null,"Petrolina/PE"]
["C","Data de Registro no MTE",null,null,null,"20/02/2024"]
["D","Nº de meses de execução contratual",null,null,null,"12 (doze) meses"]
[]
["IDENTIFICAÇÃO DO SERVIÇO"]
[]
["Tipo de Serviço",null,"Unidade de Medida",null,"Quantidade total a contratar (em função da unidade de medida)"]
["Assistente de Gabinete I - Nível I (A3)",null,"Posto de serviço",null,1]
[]
["1. MÓDULOS"]
[]
["MÃO DE OBRA"]
["Mão de obra vinculada à execução contratual"]
[]
["Dados para composição dos custos referente à mão de obra"]
[1,"Tipo de serviço ",{"$nulls":4},{"$f":"A20","v":"Assistente de Gabinete I - Nível I (A3)"}]
[2,"Classificação Brasileira de Ocupações (CBO)",{"$nulls":4},"4110-10 "]
[3,"Salário Normativo da Categoria Profissional",{"$nulls":4},3378.33]
[4,"Categoria profissional  (vinculada à execução contratual)",{"$nulls":4},"Administrativo"]
[5,"Data-Base da categoria (dia/mês/ano)",{"$nulls":4},"1º/01/2024"]
[]
[]
["MÓDULO  1: COMPOSIÇÃO DA REMUNERAÇÃO"]
[]
[1,"Composição da Remuneração",{"$nulls":4},"Valor (R$)"]
["A","Salário Base",{"$nulls":4},3378.33]
[null,"Total ",{"$nulls":4},3378.33]
[]
["MÓDULO 2: ENCARGOS E BENEFÍCIOS ANUAIS, MENSAIS E DIÁRIOS"]
[]
["Submódulo 2.1 - 13º (décimo terceiro) Salário, Férias e Adicional de Férias"]
[]
["2.1"," 13º (décimo terceiro) Salário, Férias e Adicional de Férias",null,null,null,"%","Valor (R$)"]
["A","13º (décimo terceiro) Salário",null,null,null,0.0833,281.41]
["B","Férias e Adicional de Férias",null,null,null,0.1111,375.33]
["TOTAL",{"$nulls":4},0.1944,656.74]
[]
["Submódulo 2.2 - Encargos previdenciários (GPS), Fundo de Garantia por tempo de Serviço (FGTS) e outras contribuições:"]
[]
["2.2","GPS, FGTS e outras contribuiçoes",null,null,null,"%","Valor (R$)"]
["A","INSS",null,null,null,0.2,807.01]
["B","Salário Educação",null,null,null,0.025,100.88]
["C","Seguro Acidente do Trabalho/SAT/INSS",null,null,null,0.03,121.05]
["D","SESI/SESC",null,null,null,0.015,60.53]
["E","SENAI/SENAC",null,null,null,0.01,40.35]
["F","INCRA",null,null,null,0.002,8.07]
["G","FGTS",null,null,null,0.08,322.81]
["H","SEBRAE",null,null,null,0.006,24.21]
["TOTAL",{"$nulls":4},0.368,1484.91]
[]
["Submódulo 2.3 - Benefícios Mensais e Diários"]
[]
["2.3","Benefícios Mensais e Diários",{"$nulls":4},"Valor (R$)"]
["A","Transporte ",{"$nulls":4},17.3]
["B","Auxílio alimentação (Cláusula 11ª CCT 2024)",{"$nulls":4},242]
["C","Outros (Cobertura Social - Cláusula 15ª CCT 2024) ",{"$nulls":4},74.85]
[null,"Total de Benefícios mensais e diários",{"$nulls":4},334.15]
[]
["QUADRO RESUMO DO MÓDULO 2 - Encargos e Benefícios anuais, mensais e diários"]
[]
[2,"Encargos e Benefícios anuais, mensais e diários",{"$nulls":4},"Valor (R$)"]
["2.1","13º (décimo terceiro) Salário, Férias e Adicional de Férias",{"$nulls":4},656.74]
["2.2","GPS, FGTS e outras contribuiçoes",{"$nulls":4},1484.91]
["2.3","Benefícios Mensais e Diários",{"$nulls":4},334.15]
["TOTAL",{"$nulls":5},2475.8]
[]
["MÓDULO 3 - PROVISÃO PARA RESCISÃO"]
[]
[3,"Provisão para Rescisão",{"$nulls":4},"Valor (R$)"]
["A","Aviso prévio indenizado",{"$nulls":4},160.55]
["B","Multa do FGTS e contribuição social sobre o Aviso Prévio Indenizado",{"$nulls":4},66.27]
["C","Aviso Prévio Trabalhado",{"$nulls":4},200.31]
["D","Multa do FGTS e contribuição social sobre o Aviso Prévio Trabalhado",{"$nulls":4},66.27]
["E","Demissão com Justa Causa",{"$nulls":4},-8.21]
["TOTAL",{"$nulls":5},485.19]
[]
["MÓDULO 4 - CUSTO DE REPOSIÇÃO DO PROFISSIONAL AUSENTE"]
[]
["Submódulo 4.1 - Ausências Legais"]
["4.1","Ausências legais",null,null,null,"Dias/Ano","Valor (R$)"]
["A","Férias ",null,null,null,20.9589,369.07]
["B","Ausência justificada",null,null,null,1,17.61]
["C","Acidente de trabalho",null,null,null,0.9659,17.01]
["D","Afastamento por doença",null,null,null,3.4932,61.51]
["E","Consulta médica filho",null,null,null,0.2688,4.73]
["F","Óbitos na família",null,null,null,0.0427,0.75]
["G","Casamento",null,null,null,0.0355,0.63]
["H","Doação de Sangue",null,null,null,0.02,0.35]
["I","Testemunho",null,null,null,0.004,0.07]
["J","Paternidade",null,null,null,0.1997,3.52]
["K","Maternidade",null,null,null,2.4753,43.59]
["L","Consulta pré-natal",null,null,null,0.0098,0.17]
["TOTAL",{"$nulls":4},29.4738,519.01]
[]
[]
["QUADRO RESUMO DO MÓDULO 4 - Custo de Reposição do Profissional Ausente"]
[]
[4,"Custo de Reposição do Profissional Ausente",{"$nulls":4},"Valor (R$)"]
["4.1","Ausências legais",{"$nulls":4},519.01]
["TOTAL",{"$nulls":5},519.01]
[]
["MÓDULO 5 - INSUMOS DIVERSOS"]
[]
[5,"Insumos Diversos",{"$nulls":4},"Valor (R$)"]
["A","Uniformes"]
[null,"Total ",{"$nulls":4},0]
[]
["MÓDULO 6 - CUSTOS INDIRETOS, TRIBUTOS E LUCRO"]
[]
[6,"Custos Indiretos, Tributos e Lucro",null,null,null,"%","Valor (R$)"]
["A","Custos Indiretos",null,null,null,0.025,171.46]
["B","Lucro",null,null,null,0.05,351.49]
["C","Tributos"]
["c.1","COFINS",null,null,null,0.03,242.41]
["c.2","PIS",null,null,null,0.0065,52.52]
["c.3","ISSQN",null,null,null,0.05,404.02]
[null,"Total",null,null,null,0.1615,1221.9]
[]
["2.  QUADRO -  RESUMO DO CUSTO POR EMPREGADO"]
[]
[null,"Mão de obra vinculada à execução contratual (valor por empregado)",{"$nulls":4},"Valor (R$)"]
["A","Módulo 1 - Composição da Remuneração",{"$nulls":4},3378.33]
["B","Módulo 2 - Encargos e Benefícios Anuais, Mensais e Diários",{"$nulls":4},2475.8]
["C","Módulo 3 - Provisão para recisão",{"$nulls":4},485.19]
["D","Módulo 4 - Custo de Reposição do Profissional Ausente",{"$nulls":4},519.01]
["E","Módulo 5 - Insumos diversos",{"$nulls":4},0]
["Subtotal ( A + B +C + D + E)",{"$nulls":5},6858.33]
["F","Módulo 6  - Custos indiretos, Tributos e lucro",{"$nulls":4},1221.9]
["Valor total por empregado",{"$nulls":5},8080.23]
[]
["P0 = (MÓD 1+MÓD 2+MÓD 3+MÓD 4+MÓD 5) + (CI) + (L)",null,null,null,7381.28]
["P1 = P0/(1 - (pis+confins+iss))",null,null,null,8080.23]
["T = P1 - P0",null,null,null,698.95]
["COFINS = ((cofins)/(pis+cofins+iss) x T",null,null,null,242.41]
["PIS = ((pis)/(pis+cofins+iss) x T",null,null,null,52.52]
["ISS = (iss/(pis+cofins+iss)) x T",null,null,null,404.02]

{"sheet":"Ass. Sup. I","index":7,"n_rows":148,"n_cols":7,"rows_kept":148,"cut":false,"hidden":false,"merged":[[4,0,4,6],[5,0,5,6],[7,1,7,3],[7,4,7,6],[8,1,8,3],[8,4,8,6],[9,0,9,6],[11,1,11,4],[11,5,11,6],[12,1,12,4],[12,5,12,6],[13,1,13,4],[13,5,13,6],[14,1,14,4],[14,5,14,6],[16,0,16,6],[18,0,18,1],[18,2,18,3],[18,4,18,6],[19,0,19,1],[19,2,19,3],[19,4,19,6],[21,0,21,6],[23,0,23,6],[24,0,24,6],[26,0,26,6],[34,0,34,6],[40,0,40,6],[65,1,65,3],[67,1,67,4],[70,0,70,6],[78,0,78,6],[88,0,88,6],[107,0,107,6],[113,0,113,6],[119,0,119,6],[130,0,130,6],[140,0,140,5],[142,0,142,2],[143,0,143,2],[144,0,144,2],[145,0,145,2],[146,0,146,2],[147,0,147,2]]}
[]
[]
[]
[]
[]
[" PLANILHA DE CUSTOS E FORMAÇÃO DE PREÇOS "]
[]
[null,{"$f":"'Ass. Adm. III'!B8","v":"Nº Processo"},null,null,{"$f":"'Ass. Adm. III'!E8","v":"59530.001233/2024-60"}]
[null,{"$f":"'Ass. Adm. III'!B9","v":"Licitação nº"}]
["DISCRIMINAÇÃO DOS SERVIÇOS (dados referentes à contratação)"]
[]
["A","Ano do Acordo, Convenção ou  Dissídio Coletivo",null,null,null,"2024 - PE000123/2024"]
["B","Município/UF",null,null,null,"Petrolina/PE"]
["C","Data de Registro no MTE",null,null,null,"20/02/2024"]
["D","Nº de meses de execução contratual",null,null,null,"12 (doze) meses"]
[]
["IDENTIFICAÇÃO DO SERVIÇO"]
[]
["Tipo de Serviço",null,"Unidade de Medida",null,"Quantidade total a contratar (em função da unidade de medida)"]
["Assistente de Superintendência I - Nível I (A3)",null,"Posto de serviço",null,1]
[]
["1. MÓDULOS"]
[]
["MÃO DE OBRA"]
["Mão de obra vinculada à execução contratual"]
[]
["Dados para composição dos custos referente à mão de obra"]
[1,"Tipo de serviço ",{"$nulls":4},{"$f":"A20","v":"Assistente de Superintendência I - Nível I (A3)"}]
[2,"Classificação Brasileira de Ocupações (CBO)",{"$nulls":4},"4110-10 "]
[3,"Salário Normativo da Categoria Profissional",{"$nulls":4},3378.33]
[4,"Categoria profissional  (vinculada à execução contratual)",{"$nulls":4},"Administrativo"]
[5,"Data-Base da categoria (dia/mês/ano)",{"$nulls":4},"1º/01/2024"]
[]
[]
["MÓDULO  1: COMPOSIÇÃO DA REMUNERAÇÃO"]
[]
[1,"Composição da Remuneração",{"$nulls":4},"Valor (R$)"]
["A","Salário Base",{"$nulls":4},3378.33]
[null,"Total ",{"$nulls":4},3378.33]
[]
["MÓDULO 2: ENCARGOS E BENEFÍCIOS ANUAIS, MENSAIS E DIÁRIOS"]
[]
["Submódulo 2.1 - 13º (décimo terceiro) Salário, Férias e Adicional de Férias"]
[]
["2.1"," 13º (décimo terceiro) Salário, Férias e Adicional de Férias",null,null,null,"%","Valor (R$)"]
["A","13º (décimo terceiro) Salário",null,null,null,0.0833,281.41]
["B","Férias e Adicional de Férias",null,null,null,0.1111,375.33]
["TOTAL",{"$nulls":4},0.1944,656.74]
[]
["Submódulo 2.2 - Encargos previdenciários (GPS), Fundo de Garantia por tempo de Serviço (FGTS) e outras contribuições:"]
[]
["2.2","GPS, FGTS e outras contribuiçoes",null,null,null,"%","Valor (R$)"]
["A","INSS",null,null,null,0.2,807.01]
["B","Salário Educação",null,null,null,0.025,100.88]
["C","Seguro Acidente do Trabalho/SAT/INSS",null,null,null,0.03,121.05]
["D","SESI/SESC",null,null,null,0.015,60.53]
["E","SENAI/SENAC",null,null,null,0.01,40.35]
["F","INCRA",null,null,null,0.002,8.07]
["G","FGTS",null,null,null,0.08,322.81]
["H","SEBRAE",null,null,null,0.006,24.21]
["TOTAL",{"$nulls":4},0.368,1484.91]
[]
["Submódulo 2.3 - Benefícios Mensais e Diários"]
[]
["2.3","Benefícios Mensais e Diários",{"$nulls":4},"Valor (R$)"]
["A","Transporte ",{"$nulls":4},17.3]
["B","Auxílio alimentação (Cláusula 11ª CCT 2024)",{"$nulls":4},242]
["C","Outros (Cobertura Social - Cláusula 15ª CCT 2024) ",{"$nulls":4},74.85]
[null,"Total de Benefícios mensais e diários",{"$nulls":4},334.15]
[]
["QUADRO RESUMO DO MÓDULO 2 - Encargos e Benefícios anuais, mensais e diários"]
[]
[2,"Encargos e Benefícios anuais, mensais e diários",{"$nulls":4},"Valor (R$)"]
["2.1","13º (décimo terceiro) Salário, Férias e Adicional de Férias",{"$nulls":4},656.74]
["2.2","GPS, FGTS e outras contribuiçoes",{"$nulls":4},1484.91]
["2.3","Benefícios Mensais e Diários",{"$nulls":4},334.15]
["TOTAL",{"$nulls":5},2475.8]
[]
["MÓDULO 3 - PROVISÃO PARA RESCISÃO"]
[]
[3,"Provisão para Rescisão",{"$nulls":4},"Valor (R$)"]
["A","Aviso prévio indenizado",{"$nulls":4},160.55]
["B","Multa do FGTS e contribuição social sobre o Aviso Prévio Indenizado",{"$nulls":4},66.27]
["C","Aviso Prévio Trabalhado",{"$nulls":4},200.31]
["D","Multa do FGTS e contribuição social sobre o Aviso Prévio Trabalhado",{"$nulls":4},66.27]
["E","Demissão com Justa Causa",{"$nulls":4},-8.21]
["TOTAL",{"$nulls":5},485.19]
[]
["MÓDULO 4 - CUSTO DE REPOSIÇÃO DO PROFISSIONAL AUSENTE"]
[]
["Submódulo 4.1 - Ausências Legais"]
["4.1","Ausências legais",null,null,null,"Dias/Ano","Valor (R$)"]
["A","Férias ",null,null,null,20.9589,369.07]
["B","Ausência justificada",null,null,null,1,17.61]
["C","Acidente de trabalho",null,null,null,0.9659,17.01]
["D","Afastamento por doença",null,null,null,3.4932,61.51]
["E","Consulta médica filho",null,null,null,0.2688,4.73]
["F","Óbitos na família",null,null,null,0.0427,0.75]
["G","Casamento",null,null,null,0.0355,0.63]
["H","Doação de Sangue",null,null,null,0.02,0.35]
["I","Testemunho",null,null,null,0.004,0.07]
["J","Paternidade",null,null,null,0.1997,3.52]
["K","Maternidade",null,null,null,2.4753,43.59]
["L","Consulta pré-natal",null,null,null,0.0098,0.17]
["TOTAL",{"$nulls":4},29.4738,519.01]
[]
[]
["QUADRO RESUMO DO MÓDULO 4 - Custo de Reposição do Profissional Ausente"]
[]
[4,"Custo de Reposição do Profissional Ausente",{"$nulls":4},"Valor (R$)"]
["4.1","Ausências legais",{"$nulls":4},519.01]
["TOTAL",{"$nulls":5},519.01]
[]
["MÓDULO 5 - INSUMOS DIVERSOS"]
[]
[5,"Insumos Diversos",{"$nulls":4},"Valor (R$)"]
["A","Uniformes"]
[null,"Total ",{"$nulls":4},0]
[]
["MÓDULO 6 - CUSTOS INDIRETOS, TRIBUTOS E LUCRO"]
[]
[6,"Custos Indiretos, Tributos e Lucro",null,null,null,"%","Valor (R$)"]
["A","Custos Indiretos",null,null,null,0.025,171.46]
["B","Lucro",null,null,null,0.05,351.49]
["C","Tributos"]
["c.1","COFINS",null,null,null,0.03,242.41]
["c.2","PIS",null,null,null,0.0065,52.52]
["c.3","ISSQN",null,null,null,0.05,404.02]
[null,"Total",null,null,null,0.1615,1221.9]
[]
["2.  QUADRO -  RESUMO DO CUSTO POR EMPREGADO"]
[]
[null,"Mão de obra vinculada à execução contratual (valor por empregado)",{"$nulls":4},"Valor (R$)"]
["A","Módulo 1 - Composição da Remuneração",{"$nulls":4},3378.33]
["B","Módulo 2 - Encargos e Benefícios Anuais, Mensais e Diários",{"$nulls":4},2475.8]
["C","Módulo 3 - Provisão para recisão",{"$nulls":4},485.19]
["D","Módulo 4 - Custo de Reposição do Profissional Ausente",{"$nulls":4},519.01]
["E","Módulo 5 - Insumos diversos",{"$nulls":4},0]
["Subtotal ( A + B +C + D + E)",{"$nulls":5},6858.33]
["F","Módulo 6  - Custos indiretos, Tributos e lucro",{"$nulls":4},1221.9]
["Valor total por empregado",{"$nulls":5},8080.23]
[]
["P0 = (MÓD 1+MÓD 2+MÓD 3+MÓD 4+MÓD 5) + (CI) + (L)",null,null,null,7381.28]
["P1 = P0/(1 - (pis+confins+iss))",null,null,null,8080.23]
["T = P1 - P0",null,null,null,698.95]
["COFINS = ((cofins)/(pis+cofins+iss) x T",null,null,null,242.41]
["PIS = ((pis)/(pis+cofins+iss) x T",null,null,null,52.52]
["ISS = (iss/(pis+cofins+iss)) x T",null,null,null,404.02]

{"sheet":"Ass. Sup. II","index":8,"n_rows":148,"n_cols":7,"rows_kept":148,"cut":false,"hidden":false,"merged":[[4,0,4,6],[5,0,5,6],[7,1,7,3],[7,4,7,6],[8,1,8,3],[8,4,8,6],[9,0,9,6],[11,1,11,4],[11,5,11,6],[12,1,12,4],[12,5,12,6],[13,1,13,4],[13,5,13,6],[14,1,14,4],[14,5,14,6],[16,0,16,6],[18,0,18,1],[18,2,18,3],[18,4,18,6],[19,0,19,1],[19,2,19,3],[19,4,19,6],[21,0,21,6],[23,0,23,6],[24,0,24,6],[26,0,26,6],[34,0,34,6],[40,0,40,6],[65,1,65,3],[67,1,67,4],[70,0,70,6],[78,0,78,6],[88,0,88,6],[107,0,107,6],[113,0,113,6],[119,0,119,6],[130,0,130,6],[140,0,140,5],[142,0,142,2],[143,0,143,2],[144,0,144,2],[145,0,145,2],[146,0,146,2],[147,0,147,2]]}
[]
[]
[]
[]
[]
[" PLANILHA DE CUSTOS E FORMAÇÃO DE PREÇOS "]
[]
[null,{"$f":"'Ass. Adm. III'!B8","v":"Nº Processo"},null,null,{"$f":"'Ass. Adm. III'!E8","v":"59530.001233/2024-60"}]
[null,{"$f":"'Ass. Adm. III'!B9","v":"Licitação nº"}]
["DISCRIMINAÇÃO DOS SERVIÇOS (dados referentes à contratação)"]
[]
["A","Ano do Acordo, Convenção ou  Dissídio Coletivo",null,null,null,"2024 - PE000123/2024"]
["B","Município/UF",null,null,null,"Petrolina/PE"]
["C","Data de Registro no MTE",null,null,null,"20/02/2024"]
["D","Nº de meses de execução contratual",null,null,null,"12 (doze) meses"]
[]
["IDENTIFICAÇÃO DO SERVIÇO"]
[]
["Tipo de Serviço",null,"Unidade de Medida",null,"Quantidade total a contratar (em função da unidade de medida)"]
["Assistente de Superintendência II - Nível II (AS)",null,"Posto de serviço",null,1]
[]
["1. MÓDULOS"]
[]
["MÃO DE OBRA"]
["Mão de obra vinculada à execução contratual"]
[]
["Dados para composição dos custos referente à mão de obra"]
[1,"Tipo de serviço ",{"$nulls":4},{"$f":"A20","v":"Assistente de Superintendência II - Nível II (AS)"}]
[2,"Classificação Brasileira de Ocupações (CBO)",{"$nulls":4},"4110-10 "]
[3,"Salário Normativo da Categoria Profissional",{"$nulls":4},6336.55]
[4,"Categoria profissional  (vinculada à execução contratual)",{"$nulls":4},"Administrativo"]
[5,"Data-Base da categoria (dia/mês/ano)",{"$nulls":4},{"$f":"'Ass. Adm. I'!G32","v":"1º/01/2024"}]
[]
[]
["MÓDULO  1: COMPOSIÇÃO DA REMUNERAÇÃO"]
[]
[1,"Composição da Remuneração",{"$nulls":4},"Valor (R$)"]
["A","Salário Base",{"$nulls":4},6336.55]
[null,"Total ",{"$nulls":4},6336.55]
[]
["MÓDULO 2: ENCARGOS E BENEFÍCIOS ANUAIS, MENSAIS E DIÁRIOS"]
[]
["Submódulo 2.1 - 13º (décimo terceiro) Salário, Férias e Adicional de Férias"]
[]
["2.1"," 13º (décimo terceiro) Salário, Férias e Adicional de Férias",null,null,null,"%","Valor (R$)"]
["A","13º (décimo terceiro) Salário",null,null,null,0.0833,527.83]
["B","Férias e Adicional de Férias",null,null,null,0.1111,703.99]
["TOTAL",{"$nulls":4},0.1944,1231.82]
[]
["Submódulo 2.2 - Encargos previdenciários (GPS), Fundo de Garantia por tempo de Serviço (FGTS) e outras contribuições:"]
[]
["2.2","GPS, FGTS e outras contribuiçoes",null,null,null,"%","Valor (R$)"]
["A","INSS",null,null,null,0.2,1513.67]
["B","Salário Educação",null,null,null,0.025,189.21]
["C","Seguro Acidente do Trabalho/SAT/INSS",null,null,null,0.03,227.05]
["D","SESI/SESC",null,null,null,0.015,113.53]
["E","SENAI/SENAC",null,null,null,0.01,75.68]
["F","INCRA",null,null,null,0.002,15.14]
["G","FGTS",null,null,null,0.08,605.47]
["H","SEBRAE",null,null,null,0.006,45.41]
["TOTAL",{"$nulls":4},0.368,2785.16]
[]
["Submódulo 2.3 - Benefícios Mensais e Diários"]
[]
["2.3","Benefícios Mensais e Diários",{"$nulls":4},"Valor (R$)"]
["A","Transporte ",{"$nulls":4},0]
["B","Auxílio alimentação (Cláusula 11ª CCT 2024)",{"$nulls":4},242]
["C","Outros (Cobertura Social - Cláusula 15ª CCT 2024) ",{"$nulls":4},74.85]
[null,"Total de Benefícios mensais e diários",{"$nulls":4},316.85]
[]
["QUADRO RESUMO DO MÓDULO 2 - Encargos e Benefícios anuais, mensais e diários"]
[]
[2,"Encargos e Benefícios anuais, mensais e diários",{"$nulls":4},"Valor (R$)"]
["2.1","13º (décimo terceiro) Salário, Férias e Adicional de Férias",{"$nulls":4},1231.82]
["2.2","GPS, FGTS e outras contribuiçoes",{"$nulls":4},2785.16]
["2.3","Benefícios Mensais e Diários",{"$nulls":4},316.85]
["TOTAL",{"$nulls":5},4333.83]
[]
["MÓDULO 3 - PROVISÃO PARA RESCISÃO"]
[]
[3,"Provisão para Rescisão",{"$nulls":4},"Valor (R$)"]
["A","Aviso prévio indenizado",{"$nulls":4},290.52]
["B","Multa do FGTS e contribuição social sobre o Aviso Prévio Indenizado",{"$nulls":4},124.3]
["C","Aviso Prévio Trabalhado",{"$nulls":4},365.1]
["D","Multa do FGTS e contribuição social sobre o Aviso Prévio Trabalhado",{"$nulls":4},124.3]
["E","Demissão com Justa Causa",{"$nulls":4},-15.4]
["TOTAL",{"$nulls":5},888.82]
[]
["MÓDULO 4 - CUSTO DE REPOSIÇÃO DO PROFISSIONAL AUSENTE"]
[]
["Submódulo 4.1 - Ausências Legais"]
["4.1","Ausências legais",null,null,null,"Dias/Ano","Valor (R$)"]
["A","Férias ",null,null,null,20.9589,672.98]
["B","Ausência justificada",null,null,null,1,32.11]
["C","Acidente de trabalho",null,null,null,0.9659,31.01]
["D","Afastamento por doença",null,null,null,3.4932,112.17]
["E","Consulta médica filho",null,null,null,0.2688,8.63]
["F","Óbitos na família",null,null,null,0.0427,1.37]
["G","Casamento",null,null,null,0.0355,1.14]
["H","Doação de Sangue",null,null,null,0.02,0.64]
["I","Testemunho",null,null,null,0.004,0.13]
["J","Paternidade",null,null,null,0.1997,6.41]
["K","Maternidade",null,null,null,2.4753,79.48]
["L","Consulta pré-natal",null,null,null,0.0098,0.31]
["TOTAL",{"$nulls":4},29.4738,946.38]
[]
[]
["QUADRO RESUMO DO MÓDULO 4 - Custo de Reposição do Profissional Ausente"]
[]
[4,"Custo de Reposição do Profissional Ausente",{"$nulls":4},"Valor (R$)"]
["4.1","Ausências legais",{"$nulls":4},946.38]
["TOTAL",{"$nulls":5},946.38]
[]
["MÓDULO 5 - INSUMOS DIVERSOS"]
[]
[5,"Insumos Diversos",{"$nulls":4},"Valor (R$)"]
["A","Uniformes"]
[null,"Total ",{"$nulls":4},0]
[]
["MÓDULO 6 - CUSTOS INDIRETOS, TRIBUTOS E LUCRO"]
[]
[6,"Custos Indiretos, Tributos e Lucro",null,null,null,"%","Valor (R$)"]
["A","Custos Indiretos",null,null,null,0.025,312.64]
["B","Lucro",null,null,null,0.05,640.91]
["C","Tributos"]
["c.1","COFINS",null,null,null,0.03,442.01]
["c.2","PIS",null,null,null,0.0065,95.77]
["c.3","ISSQN",null,null,null,0.05,736.68]
[null,"Total",null,null,null,0.1615,2228.01]
[]
["2.  QUADRO -  RESUMO DO CUSTO POR EMPREGADO"]
[]
[null,"Mão de obra vinculada à execução contratual (valor por empregado)",{"$nulls":4},"Valor (R$)"]
["A","Módulo 1 - Composição da Remuneração",{"$nulls":4},6336.55]
["B","Módulo 2 - Encargos e Benefícios Anuais, Mensais e Diários",{"$nulls":4},4333.83]
["C","Módulo 3 - Provisão para recisão",{"$nulls":4},888.82]
["D","Módulo 4 - Custo de Reposição do Profissional Ausente",{"$nulls":4},946.38]
["E","Módulo 5 - Insumos diversos",{"$nulls":4},0]
["Subtotal ( A + B +C + D + E)",{"$nulls":5},12505.58]
["F","Módulo 6  - Custos indiretos, Tributos e lucro",{"$nulls":4},2228.01]
["Valor total por empregado",{"$nulls":5},14733.59]
[]
["P0 = (MÓD 1+MÓD 2+MÓD 3+MÓD 4+MÓD 5) + (CI) + (L)",null,null,null,13459.13]
["P1 = P0/(1 - (pis+confins+iss))",null,null,null,14733.59]
["T = P1 - P0",null,null,null,1274.46]
["COFINS = ((cofins)/(pis+cofins+iss) x T",null,null,null,442.01]
["PIS = ((pis)/(pis+cofins+iss) x T",null,null,null,95.77]
["ISS = (iss/(pis+cofins+iss)) x T",null,null,null,736.68]

{"sheet":"Analista","index":9,"n_rows":148,"n_cols":7,"rows_kept":148,"cut":false,"hidden":false,"merged":[[4,0,4,6],[5,0,5,6],[7,1,7,3],[7,4,7,6],[8,1,8,3],[8,4,8,6],[9,0,9,6],[11,1,11,4],[11,5,11,6],[12,1,12,4],[12,5,12,6],[13,1,13,4],[13,5,13,6],[14,1,14,4],[14,5,14,6],[16,0,16,6],[18,0,18,1],[18,2,18,3],[18,4,18,6],[19,0,19,1],[19,2,19,3],[19,4,19,6],[21,0,21,6],[23,0,23,6],[24,0,24,6],[26,0,26,6],[34,0,34,6],[40,0,40,6],[65,1,65,3],[67,1,67,4],[70,0,70,6],[78,0,78,6],[88,0,88,6],[107,0,107,6],[113,0,113,6],[119,0,119,6],[130,0,130,6],[140,0,140,5],[142,0,142,2],[143,0,143,2],[144,0,144,2],[145,0,145,2],[146,0,146,2],[147,0,147,2]]}
[]
[]
[]
[]
[]
[" PLANILHA DE CUSTOS E FORMAÇÃO DE PREÇOS "]
[]
[null,{"$f":"'Ass. Adm. III'!B8","v":"Nº Processo"},null,null,{"$f":"'Ass. Adm. III'!E8","v":"59530.001233/2024-60"}]
[null,{"$f":"'Ass. Adm. III'!B9","v":"Licitação nº"}]
["DISCRIMINAÇÃO DOS SERVIÇOS (dados referentes à contratação)"]
[]
["A","Ano do Acordo, Convenção ou  Dissídio Coletivo",null,null,null,"2024 - PE000123/2024"]
["B","Município/UF",null,null,null,"Petrolina/PE"]
["C","Data de Registro no MTE",null,null,null,"20/02/2024"]
["D","Nº de meses de execução contratual",null,null,null,"12 (doze) meses"]
[]
["IDENTIFICAÇÃO DO SERVIÇO"]
[]
["Tipo de Serviço",null,"Unidade de Medida",null,"Quantidade total a contratar (em função da unidade de medida)"]
["Analista Sênior",null,"Posto de serviço",null,1]
[]
["1. MÓDULOS"]
[]
["MÃO DE OBRA"]
["Mão de obra vinculada à execução contratual"]
[]
["Dados para composição dos custos referente à mão de obra"]
[1,"Tipo de serviço ",{"$nulls":4},{"$f":"A20","v":"Analista Sênior"}]
[2,"Classificação Brasileira de Ocupações (CBO)",{"$nulls":4},"4110-10 "]
[3,"Salário Normativo da Categoria Profissional",{"$nulls":4},7399.45]
[4,"Categoria profissional  (vinculada à execução contratual)",{"$nulls":4},"Analista"]
[5,"Data-Base da categoria (dia/mês/ano)",{"$nulls":4},{"$f":"'Ass. Adm. I'!G32","v":"1º/01/2024"}]
[]
[]
["MÓDULO  1: COMPOSIÇÃO DA REMUNERAÇÃO"]
[]
[1,"Composição da Remuneração",{"$nulls":4},"Valor (R$)"]
["A","Salário Base",{"$nulls":4},7399.45]
[null,"Total ",{"$nulls":4},7399.45]
[]
["MÓDULO 2: ENCARGOS E BENEFÍCIOS ANUAIS, MENSAIS E DIÁRIOS"]
[]
["Submódulo 2.1 - 13º (décimo terceiro) Salário, Férias e Adicional de Férias"]
[]
["2.1"," 13º (décimo terceiro) Salário, Férias e Adicional de Férias",null,null,null,"%","Valor (R$)"]
["A","13º (décimo terceiro) Salário",null,null,null,0.0833,616.37]
["B","Férias e Adicional de Férias",null,null,null,0.1111,822.08]
["TOTAL",{"$nulls":4},0.1944,1438.45]
[]
["Submódulo 2.2 - Encargos previdenciários (GPS), Fundo de Garantia por tempo de Serviço (FGTS) e outras contribuições:"]
[]
["2.2","GPS, FGTS e outras contribuiçoes",null,null,null,"%","Valor (R$)"]
["A","INSS",null,null,null,0.2,1767.58]
["B","Salário Educação",null,null,null,0.025,220.95]
["C","Seguro Acidente do Trabalho/SAT/INSS",null,null,null,0.03,265.14]
["D","SESI/SESC",null,null,null,0.015,132.57]
["E","SENAI/SENAC",null,null,null,0.01,88.38]
["F","INCRA",null,null,null,0.002,17.68]
["G","FGTS",null,null,null,0.08,707.03]
["H","SEBRAE",null,null,null,0.006,53.03]
["TOTAL",{"$nulls":4},0.368,3252.36]
[]
["Submódulo 2.3 - Benefícios Mensais e Diários"]
[]
["2.3","Benefícios Mensais e Diários",{"$nulls":4},"Valor (R$)"]
["A","Transporte ",{"$nulls":4},0]
["B","Auxílio alimentação (Cláusula 11ª CCT 2024)",{"$nulls":4},242]
["C","Outros (Cobertura Social - Cláusula 15ª CCT 2024) ",{"$nulls":4},74.85]
[null,"Total de Benefícios mensais e diários",{"$nulls":4},316.85]
[]
["QUADRO RESUMO DO MÓDULO 2 - Encargos e Benefícios anuais, mensais e diários"]
[]
[2,"Encargos e Benefícios anuais, mensais e diários",{"$nulls":4},"Valor (R$)"]
["2.1","13º (décimo terceiro) Salário, Férias e Adicional de Férias",{"$nulls":4},1438.45]
["2.2","GPS, FGTS e outras contribuiçoes",{"$nulls":4},3252.36]
["2.3","Benefícios Mensais e Diários",{"$nulls":4},316.85]
["TOTAL",{"$nulls":5},5007.66]
[]
["MÓDULO 3 - PROVISÃO PARA RESCISÃO"]
[]
[3,"Provisão para Rescisão",{"$nulls":4},"Valor (R$)"]
["A","Aviso prévio indenizado",{"$nulls":4},337.44]
["B","Multa do FGTS e contribuição social sobre o Aviso Prévio Indenizado",{"$nulls":4},145.15]
["C","Aviso Prévio Trabalhado",{"$nulls":4},424.53]
["D","Multa do FGTS e contribuição social sobre o Aviso Prévio Trabalhado",{"$nulls":4},145.15]
["E","Demissão com Justa Causa",{"$nulls":4},-17.98]
["TOTAL",{"$nulls":5},1034.29]
[]
["MÓDULO 4 - CUSTO DE REPOSIÇÃO DO PROFISSIONAL AUSENTE"]
[]
["Submódulo 4.1 - Ausências Legais"]
["4.1","Ausências legais",null,null,null,"Dias/Ano","Valor (R$)"]
["A","Férias ",null,null,null,20.9589,782.54]
["B","Ausência justificada",null,null,null,1,37.34]
["C","Acidente de trabalho",null,null,null,0.9659,36.06]
["D","Afastamento por doença",null,null,null,3.4932,130.43]
["E","Consulta médica filho",null,null,null,0.2688,10.04]
["F","Óbitos na família",null,null,null,0.0427,1.59]
["G","Casamento",null,null,null,0.0355,1.33]
["H","Doação de Sangue",null,null,null,0.02,0.75]
["I","Testemunho",null,null,null,0.004,0.15]
["J","Paternidade",null,null,null,0.1997,7.46]
["K","Maternidade",null,null,null,2.4753,92.42]
["L","Consulta pré-natal",null,null,null,0.0098,0.37]
["TOTAL",{"$nulls":4},29.4738,1100.48]
[]
[]
["QUADRO RESUMO DO MÓDULO 4 - Custo de Reposição do Profissional Ausente"]
[]
[4,"Custo de Reposição do Profissional Ausente",{"$nulls":4},"Valor (R$)"]
["4.1","Ausências legais",{"$nulls":4},1100.48]
["TOTAL",{"$nulls":5},1100.48]
[]
["MÓDULO 5 - INSUMOS DIVERSOS"]
[]
[5,"Insumos Diversos",{"$nulls":4},"Valor (R$)"]
["A","Uniformes"]
[null,"Total ",{"$nulls":4},0]
[]
["MÓDULO 6 - CUSTOS INDIRETOS, TRIBUTOS E LUCRO"]
[]
[6,"Custos Indiretos, Tributos e Lucro",null,null,null,"%","Valor (R$)"]
["A","Custos Indiretos",null,null,null,0.025,363.55]
["B","Lucro",null,null,null,0.05,745.27]
["C","Tributos"]
["c.1","COFINS",null,null,null,0.03,513.98]
["c.2","PIS",null,null,null,0.0065,111.36]
["c.3","ISSQN",null,null,null,0.05,856.63]
[null,"Total",null,null,null,0.1615,2590.79]
[]
["2.  QUADRO -  RESUMO DO CUSTO POR EMPREGADO"]
[]
[null,"Mão de obra vinculada à execução contratual (valor por empregado)",{"$nulls":4},"Valor (R$)"]
["A","Módulo 1 - Composição da Remuneração",{"$nulls":4},7399.45]
["B","Módulo 2 - Encargos e Benefícios Anuais, Mensais e Diários",{"$nulls":4},5007.66]
["C","Módulo 3 - Provisão para recisão",{"$nulls":4},1034.29]
["D","Módulo 4 - Custo de Reposição do Profissional Ausente",{"$nulls":4},1100.48]
["E","Módulo 5 - Insumos diversos",{"$nulls":4},0]
["Subtotal ( A + B +C + D + E)",{"$nulls":5},14541.88]
["F","Módulo 6  - Custos indiretos, Tributos e lucro",{"$nulls":4},2590.79]
["Valor total por empregado",{"$nulls":5},17132.67]
[]
["P0 = (MÓD 1+MÓD 2+MÓD 3+MÓD 4+MÓD 5) + (CI) + (L)",null,null,null,15650.7]
["P1 = P0/(1 - (pis+confins+iss))",null,null,null,17132.67]
["T = P1 - P0",null,null,null,1481.97]
["COFINS = ((cofins)/(pis+cofins+iss) x T",null,null,null,513.98]
["PIS = ((pis)/(pis+cofins+iss) x T",null,null,null,111.36]
["ISS = (iss/(pis+cofins+iss)) x T",null,null,null,856.63]

{"sheet":"Assist. Condução","index":10,"n_rows":148,"n_cols":7,"rows_kept":148,"cut":false,"hidden":false,"merged":[[4,0,4,6],[5,0,5,6],[7,1,7,3],[7,4,7,6],[8,1,8,3],[8,4,8,6],[9,0,9,6],[11,1,11,4],[11,5,11,6],[12,1,12,4],[12,5,12,6],[13,1,13,4],[13,5,13,6],[14,1,14,4],[14,5,14,6],[16,0,16,6],[18,0,18,1],[18,2,18,3],[18,4,18,6],[19,0,19,1],[19,2,19,3],[19,4,19,6],[21,0,21,6],[23,0,23,6],[24,0,24,6],[26,0,26,6],[34,0,34,6],[40,0,40,6],[65,1,65,3],[67,1,67,4],[70,0,70,6],[78,0,78,6],[88,0,88,6],[107,0,107,6],[113,0,113,6],[119,0,119,6],[130,0,130,6],[140,0,140,5],[142,0,142,2],[143,0,143,2],[144,0,144,2],[145,0,145,2],[146,0,146,2],[147,0,147,2],[133,10,134,11]]}
[]
[]
[]
[]
[]
[" PLANILHA DE CUSTOS E FORMAÇÃO DE PREÇOS "]
[]
[null,{"$f":"'Ass. Adm. III'!B8","v":"Nº Processo"},null,null,{"$f":"'Ass. Adm. III'!E8","v":"59530.001233/2024-60"}]
[null,{"$f":"'Ass. Adm. III'!B9","v":"Licitação nº"}]
["DISCRIMINAÇÃO DOS SERVIÇOS (dados referentes à contratação)"]
[]
["A","Ano do Acordo, Convenção ou  Dissídio Coletivo",null,null,null,"2024 - PE000123/2024"]
["B","Município/UF",null,null,null,"Petrolina/PE"]
["C","Data de Registro no MTE",null,null,null,"20/02/2024"]
["D","Nº de meses de execução contratual",null,null,null,"12 (doze) meses"]
[]
["IDENTIFICAÇÃO DO SERVIÇO"]
[]
["Tipo de Serviço",null,"Unidade de Medida",null,"Quantidade total a contratar (em função da unidade de medida)"]
["Assistente de Condução (A3)",null,"Posto de serviço",null,1]
[]
["1. MÓDULOS"]
[]
["MÃO DE OBRA"]
["Mão de obra vinculada à execução contratual"]
[]
["Dados para composição dos custos referente à mão de obra"]
[1,"Tipo de serviço ",{"$nulls":4},{"$f":"A20","v":"Assistente de Condução (A3)"}]
[2,"Classificação Brasileira de Ocupações (CBO)",{"$nulls":4},"3421-25"]
[3,"Salário Normativo da Categoria Profissional",{"$nulls":4},3378.33]
[4,"Categoria profissional  (vinculada à execução contratual)",{"$nulls":4},"Administrativo"]
[5,"Data-Base da categoria (dia/mês/ano)",{"$nulls":4},"01° de janeiro"]
[]
[]
["MÓDULO  1: COMPOSIÇÃO DA REMUNERAÇÃO"]
[]
[1,"Composição da Remuneração",{"$nulls":4},"Valor (R$)"]
["A","Salário Base",{"$nulls":4},3378.33]
[null,"Total ",{"$nulls":4},3378.33]
[]
["MÓDULO 2: ENCARGOS E BENEFÍCIOS ANUAIS, MENSAIS E DIÁRIOS"]
[]
["Submódulo 2.1 - 13º (décimo terceiro) Salário, Férias e Adicional de Férias"]
[]
["2.1"," 13º (décimo terceiro) Salário, Férias e Adicional de Férias",null,null,null,"%","Valor (R$)"]
["A","13º (décimo terceiro) Salário",null,null,null,0.0833,281.41]
["B","Férias e Adicional de Férias",null,null,null,0.1111,375.33]
["TOTAL",{"$nulls":4},0.1944,656.74]
[]
["Submódulo 2.2 - Encargos previdenciários (GPS), Fundo de Garantia por tempo de Serviço (FGTS) e outras contribuições:"]
[]
["2.2","GPS, FGTS e outras contribuiçoes",null,null,null,"%","Valor (R$)"]
["A","INSS",null,null,null,0.2,807.01]
["B","Salário Educação",null,null,null,0.025,100.88]
["C","Seguro Acidente do Trabalho/SAT/INSS",null,null,null,0.03,121.05]
["D","SESI/SESC",null,null,null,0.015,60.53]
["E","SENAI/SENAC",null,null,null,0.01,40.35]
["F","INCRA",null,null,null,0.002,8.07]
["G","FGTS",null,null,null,0.08,322.81]
["H","SEBRAE",null,null,null,0.006,24.21]
["TOTAL",{"$nulls":4},0.368,1484.91]
[]
["Submódulo 2.3 - Benefícios Mensais e Diários"]
[]
["2.3","Benefícios Mensais e Diários",{"$nulls":4},"Valor (R$)"]
["A","Transporte ",{"$nulls":4},17.3]
["B","Auxílio alimentação (Cláusula 11ª CCT 2023)",{"$nulls":4},242]
["C","Outros (Cobertura Social - Cláusula 15ª CCT 2023) ",{"$nulls":4},74.85]
[null,"Total de Benefícios mensais e diários",{"$nulls":4},334.15]
[]
["QUADRO RESUMO DO MÓDULO 2 - Encargos e Benefícios anuais, mensais e diários"]
[]
[2,"Encargos e Benefícios anuais, mensais e diários",{"$nulls":4},"Valor (R$)"]
["2.1","13º (décimo terceiro) Salário, Férias e Adicional de Férias",{"$nulls":4},656.74]
["2.2","GPS, FGTS e outras contribuiçoes",{"$nulls":4},1484.91]
["2.3","Benefícios Mensais e Diários",{"$nulls":4},334.15]
["TOTAL",{"$nulls":5},2475.8]
[]
["MÓDULO 3 - PROVISÃO PARA RESCISÃO"]
[]
[3,"Provisão para Rescisão",{"$nulls":4},"Valor (R$)"]
["A","Aviso prévio indenizado",{"$nulls":4},160.55]
["B","Multa do FGTS e contribuição social sobre o Aviso Prévio Indenizado",{"$nulls":4},66.27]
["C","Aviso Prévio Trabalhado",{"$nulls":4},200.31]
["D","Multa do FGTS e contribuição social sobre o Aviso Prévio Trabalhado",{"$nulls":4},66.27]
["E","Demissão com Justa Causa",{"$nulls":4},-8.21]
["TOTAL",{"$nulls":5},485.19]
[]
["MÓDULO 4 - CUSTO DE REPOSIÇÃO DO PROFISSIONAL AUSENTE"]
[]
["Submódulo 4.1 - Ausências Legais"]
["4.1","Ausências legais",null,null,null,"Dias/Ano","Valor (R$)"]
["A","Férias ",null,null,null,20.9589,369.07]
["B","Ausência justificada",null,null,null,1,17.61]
["C","Acidente de trabalho",null,null,null,0.9659,17.01]
["D","Afastamento por doença",null,null,null,3.4932,61.51]
["E","Consulta médica filho",null,null,null,0.2688,4.73]
["F","Óbitos na família",null,null,null,0.0427,0.75]
["G","Casamento",null,null,null,0.0355,0.63]
["H","Doação de Sangue",null,null,null,0.02,0.35]
["I","Testemunho",null,null,null,0.004,0.07]
["J","Paternidade",null,null,null,0.1997,3.52]
["K","Maternidade",null,null,null,2.4753,43.59]
["L","Consulta pré-natal",null,null,null,0.0098,0.17]
["TOTAL",{"$nulls":4},29.4738,519.01]
[]
[]
["QUADRO RESUMO DO MÓDULO 4 - Custo de Reposição do Profissional Ausente"]
[]
[4,"Custo de Reposição do Profissional Ausente",{"$nulls":4},"Valor (R$)"]
["4.1","Ausências legais",{"$nulls":4},519.01]
["TOTAL",{"$nulls":5},519.01]
[]
["MÓDULO 5 - INSUMOS DIVERSOS"]
[]
[5,"Insumos Diversos",{"$nulls":4},"Valor (R$)"]
["A","Uniformes",{"$nulls":4},0]
[null,"Total ",{"$nulls":4},0]
[]
["MÓDULO 6 - CUSTOS INDIRETOS, TRIBUTOS E LUCRO"]
[]
[6,"Custos Indiretos, Tributos e Lucro",null,null,null,"%","Valor (R$)"]
["A","Custos Indiretos",null,null,null,0.025,171.46]
["B","Lucro",null,null,null,0.05,351.49]
["C","Tributos"]
["c.1","COFINS",null,null,null,0.03,242.41]
["c.2","PIS",null,null,null,0.0065,52.52]
["c.3","ISSQN",null,null,null,0.05,404.02]
[null,"Total",null,null,null,0.1615,1221.9]
[]
["2.  QUADRO -  RESUMO DO CUSTO POR EMPREGADO"]
[]
[null,"Mão de obra vinculada à execução contratual (valor por empregado)",{"$nulls":4},"Valor (R$)"]
["A","Módulo 1 - Composição da Remuneração",{"$nulls":4},3378.33]
["B","Módulo 2 - Encargos e Benefícios Anuais, Mensais e Diários",{"$nulls":4},2475.8]
["C","Módulo 3 - Provisão para recisão",{"$nulls":4},485.19]
["D","Módulo 4 - Custo de Reposição do Profissional Ausente",{"$nulls":4},519.01]
["E","Módulo 5 - Insumos diversos",{"$nulls":4},0]
["Subtotal ( A + B +C + D + E)",{"$nulls":5},6858.33]
["F","Módulo 6  - Custos indiretos, Tributos e lucro",{"$nulls":4},1221.9]
["Valor total por empregado",{"$nulls":5},8080.23]
[]
["P0 = (MÓD 1+MÓD 2+MÓD 3+MÓD 4+MÓD 5) + (CI) + (L)",null,null,null,7381.28]
["P1 = P0/(1 - (pis+confins+iss))",null,null,null,8080.23]
["T = P1 - P0",null,null,null,698.95]
["COFINS = ((cofins)/(pis+cofins+iss) x T",null,null,null,242.41]
["PIS = ((pis)/(pis+cofins+iss) x T",null,null,null,52.52]
["ISS = (iss/(pis+cofins+iss)) x T",null,null,null,404.02]

{"sheet":"Ass. Cond. Hab. D","index":11,"n_rows":148,"n_cols":7,"rows_kept":148,"cut":false,"hidden":false,"merged":[[4,0,4,6],[5,0,5,6],[7,1,7,3],[7,4,7,6],[8,1,8,3],[8,4,8,6],[9,0,9,6],[11,1,11,4],[11,5,11,6],[12,1,12,4],[12,5,12,6],[13,1,13,4],[13,5,13,6],[14,1,14,4],[14,5,14,6],[16,0,16,6],[18,0,18,1],[18,2,18,3],[18,4,18,6],[19,0,19,1],[19,2,19,3],[19,4,19,6],[21,0,21,6],[23,0,23,6],[24,0,24,6],[26,0,26,6],[34,0,34,6],[40,0,40,6],[65,1,65,3],[67,1,67,4],[70,0,70,6],[78,0,78,6],[88,0,88,6],[107,0,107,6],[113,0,113,6],[119,0,119,6],[130,0,130,6],[140,0,140,5],[142,0,142,2],[143,0,143,2],[144,0,144,2],[145,0,145,2],[146,0,146,2],[147,0,147,2]]}
[]
[]
[]
[]
[]
[" PLANILHA DE CUSTOS E FORMAÇÃO DE PREÇOS "]
[]
[null,{"$f":"'Ass. Adm. III'!B8","v":"Nº Processo"},null,null,{"$f":"'Ass. Adm. III'!E8","v":"59530.001233/2024-60"}]
[null,{"$f":"'Ass. Adm. III'!B9","v":"Licitação nº"}]
["DISCRIMINAÇÃO DOS SERVIÇOS (dados referentes à contratação)"]
[]
["A","Ano do Acordo, Convenção ou  Dissídio Coletivo",null,null,null,"2024 - PE000123/2024"]
["B","Município/UF",null,null,null,"Petrolina/PE"]
["C","Data de Registro no MTE",null,null,null,"20/02/2024"]
["D","Nº de meses de execução contratual",null,null,null,"12 (doze) meses"]
[]
["IDENTIFICAÇÃO DO SERVIÇO"]
[]
["Tipo de Serviço",null,"Unidade de Medida",null,"Quantidade total a contratar (em função da unidade de medida)"]
["Assistente de Condução - Hab. D (A3)",null,"Posto de serviço",null,1]
[]
["1. MÓDULOS"]
[]
["MÃO DE OBRA"]
["Mão de obra vinculada à execução contratual"]
[]
["Dados para composição dos custos referente à mão de obra"]
[1,"Tipo de serviço ",{"$nulls":4},{"$f":"A20","v":"Assistente de Condução - Hab. D (A3)"}]
[2,"Classificação Brasileira de Ocupações (CBO)",{"$nulls":4},"3421-25"]
[3,"Salário Normativo da Categoria Profissional",{"$nulls":4},3378.33]
[4,"Categoria profissional  (vinculada à execução contratual)",{"$nulls":4},"Administrativo"]
[5,"Data-Base da categoria (dia/mês/ano)",{"$nulls":4},"01° de janeiro"]
[]
[]
["MÓDULO  1: COMPOSIÇÃO DA REMUNERAÇÃO"]
[]
[1,"Composição da Remuneração",{"$nulls":4},"Valor (R$)"]
["A","Salário Base",{"$nulls":4},3378.33]
[null,"Total ",{"$nulls":4},3378.33]
[]
["MÓDULO 2: ENCARGOS E BENEFÍCIOS ANUAIS, MENSAIS E DIÁRIOS"]
[]
["Submódulo 2.1 - 13º (décimo terceiro) Salário, Férias e Adicional de Férias"]
[]
["2.1"," 13º (décimo terceiro) Salário, Férias e Adicional de Férias",null,null,null,"%","Valor (R$)"]
["A","13º (décimo terceiro) Salário",null,null,null,0.0833,281.41]
["B","Férias e Adicional de Férias",null,null,null,0.1111,375.33]
["TOTAL",{"$nulls":4},0.1944,656.74]
[]
["Submódulo 2.2 - Encargos previdenciários (GPS), Fundo de Garantia por tempo de Serviço (FGTS) e outras contribuições:"]
[]
["2.2","GPS, FGTS e outras contribuiçoes",null,null,null,"%","Valor (R$)"]
["A","INSS",null,null,null,0.2,807.01]
["B","Salário Educação",null,null,null,0.025,100.88]
["C","Seguro Acidente do Trabalho/SAT/INSS",null,null,null,0.03,121.05]
["D","SESI/SESC",null,null,null,0.015,60.53]
["E","SENAI/SENAC",null,null,null,0.01,40.35]
["F","INCRA",null,null,null,0.002,8.07]
["G","FGTS",null,null,null,0.08,322.81]
["H","SEBRAE",null,null,null,0.006,24.21]
["TOTAL",{"$nulls":4},0.368,1484.91]
[]
["Submódulo 2.3 - Benefícios Mensais e Diários"]
[]
["2.3","Benefícios Mensais e Diários",{"$nulls":4},"Valor (R$)"]
["A","Transporte ",{"$nulls":4},17.3]
["B","Auxílio alimentação (Cláusula 11ª CCT 2024)",{"$nulls":4},242]
["C","Outros (Cobertura Social - Cláusula 15ª CCT 2024) ",{"$nulls":4},74.85]
[null,"Total de Benefícios mensais e diários",{"$nulls":4},334.15]
[]
["QUADRO RESUMO DO MÓDULO 2 - Encargos e Benefícios anuais, mensais e diários"]
[]
[2,"Encargos e Benefícios anuais, mensais e diários",{"$nulls":4},"Valor (R$)"]
["2.1","13º (décimo terceiro) Salário, Férias e Adicional de Férias",{"$nulls":4},656.74]
["2.2","GPS, FGTS e outras contribuiçoes",{"$nulls":4},1484.91]
["2.3","Benefícios Mensais e Diários",{"$nulls":4},334.15]
["TOTAL",{"$nulls":5},2475.8]
[]
["MÓDULO 3 - PROVISÃO PARA RESCISÃO"]
[]
[3,"Provisão para Rescisão",{"$nulls":4},"Valor (R$)"]
["A","Aviso prévio indenizado",{"$nulls":4},160.55]
["B","Multa do FGTS e contribuição social sobre o Aviso Prévio Indenizado",{"$nulls":4},66.27]
["C","Aviso Prévio Trabalhado",{"$nulls":4},200.31]
["D","Multa do FGTS e contribuição social sobre o Aviso Prévio Trabalhado",{"$nulls":4},66.27]
["E","Demissão com Justa Causa",{"$nulls":4},-8.21]
["TOTAL",{"$nulls":5},485.19]
[]
["MÓDULO 4 - CUSTO DE REPOSIÇÃO DO PROFISSIONAL AUSENTE"]
[]
["Submódulo 4.1 - Ausências Legais"]
["4.1","Ausências legais",null,null,null,"Dias/Ano","Valor (R$)"]
["A","Férias ",null,null,null,20.9589,369.07]
["B","Ausência justificada",null,null,null,1,17.61]
["C","Acidente de trabalho",null,null,null,0.9659,17.01]
["D","Afastamento por doença",null,null,null,3.4932,61.51]
["E","Consulta médica filho",null,null,null,0.2688,4.73]
["F","Óbitos na família",null,null,null,0.0427,0.75]
["G","Casamento",null,null,null,0.0355,0.63]
["H","Doação de Sangue",null,null,null,0.02,0.35]
["I","Testemunho",null,null,null,0.004,0.07]
["J","Paternidade",null,null,null,0.1997,3.52]
["K","Maternidade",null,null,null,2.4753,43.59]
["L","Consulta pré-natal",null,null,null,0.0098,0.17]
["TOTAL",{"$nulls":4},29.4738,519.01]
[]
[]
["QUADRO RESUMO DO MÓDULO 4 - Custo de Reposição do Profissional Ausente"]
[]
[4,"Custo de Reposição do Profissional Ausente",{"$nulls":4},"Valor (R$)"]
["4.1","Ausências legais",{"$nulls":4},519.01]
["TOTAL",{"$nulls":5},519.01]
[]
["MÓDULO 5 - INSUMOS DIVERSOS"]
[]
[5,"Insumos Diversos",{"$nulls":4},"Valor (R$)"]
["A","Uniformes",{"$nulls":4},0]
[null,"Total ",{"$nulls":4},0]
[]
["MÓDULO 6 - CUSTOS INDIRETOS, TRIBUTOS E LUCRO"]
[]
[6,"Custos Indiretos, Tributos e Lucro",null,null,null,"%","Valor (R$)"]
["A","Custos Indiretos",null,null,null,0.025,171.46]
["B","Lucro",null,null,null,0.05,351.49]
["C","Tributos"]
["c.1","COFINS",null,null,null,0.03,242.41]
["c.2","PIS",null,null,null,0.0065,52.52]
["c.3","ISSQN",null,null,null,0.05,404.02]
[null,"Total",null,null,null,0.1615,1221.9]
[]
["2.  QUADRO -  RESUMO DO CUSTO POR EMPREGADO"]
[]
[null,"Mão de obra vinculada à execução contratual (valor por empregado)",{"$nulls":4},"Valor (R$)"]
["A","Módulo 1 - Composição da Remuneração",{"$nulls":4},3378.33]
["B","Módulo 2 - Encargos e Benefícios Anuais, Mensais e Diários",{"$nulls":4},2475.8]
["C","Módulo 3 - Provisão para recisão",{"$nulls":4},485.19]
["D","Módulo 4 - Custo de Reposição do Profissional Ausente",{"$nulls":4},519.01]
["E","Módulo 5 - Insumos diversos",{"$nulls":4},0]
["Subtotal ( A + B +C + D + E)",{"$nulls":5},6858.33]
["F","Módulo 6  - Custos indiretos, Tributos e lucro",{"$nulls":4},1221.9]
["Valor total por empregado",{"$nulls":5},8080.23]
[]
["P0 = (MÓD 1+MÓD 2+MÓD 3+MÓD 4+MÓD 5) + (CI) + (L)",null,null,null,7381.28]
["P1 = P0/(1 - (pis+confins+iss))",null,null,null,8080.23]
["T = P1 - P0",null,null,null,698.95]
["COFINS = ((cofins)/(pis+cofins+iss) x T",null,null,null,242.41]
["PIS = ((pis)/(pis+cofins+iss) x T",null,null,null,52.52]
["ISS = (iss/(pis+cofins+iss)) x T",null,null,null,404.02]

{"sheet":"Assist. Condução - Hora Extra","index":12,"n_rows":148,"n_cols":7,"rows_kept":148,"cut":false,"hidden":false,"merged":[[4,0,4,6],[5,0,5,6],[7,1,7,3],[7,4,7,6],[8,1,8,3],[8,4,8,6],[9,0,9,6],[11,1,11,4],[11,5,11,6],[12,1,12,4],[12,5,12,6],[13,1,13,4],[13,5,13,6],[14,1,14,4],[14,5,14,6],[16,0,16,6],[18,0,18,1],[18,2,18,3],[18,4,18,6],[19,0,19,1],[19,2,19,3],[19,4,19,6],[21,0,21,6],[23,0,23,6],[24,0,24,6],[26,0,26,6],[34,0,34,6],[40,0,40,6],[65,1,65,3],[67,1,67,4],[70,0,70,6],[78,0,78,6],[88,0,88,6],[107,0,107,6],[113,0,113,6],[119,0,119,6],[130,0,130,6],[140,0,140,5],[142,0,142,2],[143,0,143,2],[144,0,144,2],[145,0,145,2],[146,0,146,2],[147,0,147,2],[133,10,134,11]]}
[]
[]
[]
[]
[]
[" PLANILHA DE CUSTOS E FORMAÇÃO DE PREÇOS "]
[]
[null,{"$f":"'Ass. Adm. III'!B8","v":"Nº Processo"},null,null,{"$f":"'Ass. Adm. III'!E8","v":"59530.001233/2024-60"}]
[null,{"$f":"'Ass. Adm. III'!B9","v":"Licitação nº"}]
["DISCRIMINAÇÃO DOS SERVIÇOS (dados referentes à contratação)"]
[]
["A","Ano do Acordo, Convenção ou  Dissídio Coletivo",null,null,null,"2024 - PE000123/2024"]
["B","Município/UF",null,null,null,"Petrolina/PE"]
["C","Data de Registro no MTE",null,null,null,"20/02/2024"]
["D","Nº de meses de execução contratual",null,null,null,"12 (doze) meses"]
[]
["IDENTIFICAÇÃO DO SERVIÇO"]
[]
["Tipo de Serviço",null,"Unidade de Medida",null,"Quantidade total a contratar (em função da unidade de medida)"]
["Assistente de Condução (A3) - Horas Extras",null,"Hora",null,1]
[]
["1. MÓDULOS"]
[]
["MÃO DE OBRA"]
["Mão de obra vinculada à execução contratual"]
[]
["Dados para composição dos custos referente à mão de obra"]
[1,"Tipo de serviço ",{"$nulls":4},{"$f":"A20","v":"Assistente de Condução (A3) - Horas Extras"}]
[2,"Classificação Brasileira de Ocupações (CBO)",{"$nulls":4},"3421-25"]
[3,"Hora extra a 50%",{"$nulls":4},23.03]
[4,"Categoria profissional  (vinculada à execução contratual)",{"$nulls":4},"Administrativo"]
[5,"Data-Base da categoria (dia/mês/ano)",{"$nulls":4},"01° de janeiro"]
[]
[]
["MÓDULO  1: COMPOSIÇÃO DA REMUNERAÇÃO"]
[]
[1,"Composição da Remuneração",{"$nulls":4},"Valor (R$)"]
["A","Hora extra a 50% - Assistente de Condução",{"$nulls":4},23.03]
[null,"Total ",{"$nulls":4},23.03]
[]
["MÓDULO 2: ENCARGOS E BENEFÍCIOS ANUAIS, MENSAIS E DIÁRIOS"]
[]
["Submódulo 2.1 - 13º (décimo terceiro) Salário, Férias e Adicional de Férias"]
[]
["2.1"," 13º (décimo terceiro) Salário, Férias e Adicional de Férias",null,null,null,"%","Valor (R$)"]
["A","13º (décimo terceiro) Salário",null,null,null,0.0833,1.92]
["B","Férias e Adicional de Férias",null,null,null,0.1111,2.56]
["TOTAL",{"$nulls":4},0.1944,4.48]
[]
["Submódulo 2.2 - Encargos previdenciários (GPS), Fundo de Garantia por tempo de Serviço (FGTS) e outras contribuições:"]
[]
["2.2","GPS, FGTS e outras contribuiçoes",null,null,null,"%","Valor (R$)"]
["A","INSS",null,null,null,0.2,5.5]
["B","Salário Educação",null,null,null,0.025,0.69]
["C","Seguro Acidente do Trabalho/SAT/INSS",null,null,null,0.03,0.83]
["D","SESI/SESC",null,null,null,0.015,0.41]
["E","SENAI/SENAC",null,null,null,0.01,0.28]
["F","INCRA",null,null,null,0.002,0.06]
["G","FGTS",null,null,null,0.08,2.2]
["H","SEBRAE",null,null,null,0.006,0.17]
["TOTAL",{"$nulls":4},0.368,10.14]
[]
["Submódulo 2.3 - Benefícios Mensais e Diários"]
[]
["2.3","Benefícios Mensais e Diários",{"$nulls":4},"Valor (R$)"]
["A","Transporte ",{"$nulls":4},0]
["B","Auxílio alimentação (Cláusula 11ª CCT 2024)",{"$nulls":4},0]
["C","Outros (Cobertura Social - Cláusula 15ª CCT 2024) ",{"$nulls":4},0]
[null,"Total de Benefícios mensais e diários",{"$nulls":4},0]
[]
["QUADRO RESUMO DO MÓDULO 2 - Encargos e Benefícios anuais, mensais e diários"]
[]
[2,"Encargos e Benefícios anuais, mensais e diários",{"$nulls":4},"Valor (R$)"]
["2.1","13º (décimo terceiro) Salário, Férias e Adicional de Férias",{"$nulls":4},4.48]
["2.2","GPS, FGTS e outras contribuiçoes",{"$nulls":4},10.14]
["2.3","Benefícios Mensais e Diários",{"$nulls":4},0]
["TOTAL",{"$nulls":5},14.62]
[]
["MÓDULO 3 - PROVISÃO PARA RESCISÃO"]
[]
[3,"Provisão para Rescisão",{"$nulls":4},"Valor (R$)"]
["A","Aviso prévio indenizado",{"$nulls":4},1.02]
["B","Multa do FGTS e contribuição social sobre o Aviso Prévio Indenizado",{"$nulls":4},0.45]
["C","Aviso Prévio Trabalhado",{"$nulls":4},1.29]
["D","Multa do FGTS e contribuição social sobre o Aviso Prévio Trabalhado",{"$nulls":4},0.45]
["E","Demissão com Justa Causa",{"$nulls":4},-0.06]
["TOTAL",{"$nulls":5},3.15]
[]
["MÓDULO 4 - CUSTO DE REPOSIÇÃO DO PROFISSIONAL AUSENTE"]
[]
["Submódulo 4.1 - Ausências Legais"]
["4.1","Ausências legais",null,null,null,"Dias/Ano","Valor (R$)"]
["A","Férias ",null,null,null,20.9589,2.39]
["B","Ausência justificada",null,null,null,1,0.11]
["C","Acidente de trabalho",null,null,null,0.9659,0.11]
["D","Afastamento por doença",null,null,null,3.4932,0.4]
["E","Consulta médica filho",null,null,null,0.2688,0.03]
["F","Óbitos na família",null,null,null,0.0427,0]
["G","Casamento",null,null,null,0.0355,0]
["H","Doação de Sangue",null,null,null,0.02,0]
["I","Testemunho",null,null,null,0.004,0]
["J","Paternidade",null,null,null,0.1997,0.02]
["K","Maternidade",null,null,null,2.4753,0.28]
["L","Consulta pré-natal",null,null,null,0.0098,0]
["TOTAL",{"$nulls":4},29.4738,3.34]
[]
[]
["QUADRO RESUMO DO MÓDULO 4 - Custo de Reposição do Profissional Ausente"]
[]
[4,"Custo de Reposição do Profissional Ausente",{"$nulls":4},"Valor (R$)"]
["4.1","Ausências legais",{"$nulls":4},3.34]
["TOTAL",{"$nulls":5},3.34]
[]
["MÓDULO 5 - INSUMOS DIVERSOS"]
[]
[5,"Insumos Diversos",{"$nulls":4},"Valor (R$)"]
["A","Uniformes",{"$nulls":4},0]
[null,"Total ",{"$nulls":4},0]
[]
["MÓDULO 6 - CUSTOS INDIRETOS, TRIBUTOS E LUCRO"]
[]
[6,"Custos Indiretos, Tributos e Lucro",null,null,null,"%","Valor (R$)"]
["A","Custos Indiretos",null,null,null,0.025,1.1]
["B","Lucro",null,null,null,0.05,2.26]
["C","Tributos"]
["c.1","COFINS",null,null,null,0.03,1.56]
["c.2","PIS",null,null,null,0.0065,0.34]
["c.3","ISSQN",null,null,null,0.05,2.6]
[null,"Total",null,null,null,0.1615,7.86]
[]
["2.  QUADRO -  RESUMO DO CUSTO POR EMPREGADO"]
[]
[null,"Mão de obra vinculada à execução contratual (valor por empregado)",{"$nulls":4},"Valor (R$)"]
["A","Módulo 1 - Composição da Remuneração",{"$nulls":4},23.03]
["B","Módulo 2 - Encargos e Benefícios Anuais, Mensais e Diários",{"$nulls":4},14.62]
["C","Módulo 3 - Provisão para recisão",{"$nulls":4},3.15]
["D","Módulo 4 - Custo de Reposição do Profissional Ausente",{"$nulls":4},3.34]
["E","Módulo 5 - Insumos diversos",{"$nulls":4},0]
["Subtotal ( A + B +C + D + E)",{"$nulls":5},44.14]
["F","Módulo 6  - Custos indiretos, Tributos e lucro",{"$nulls":4},7.86]
["Valor total por Hora Extra a 50%",{"$nulls":5},52]
[]
["P0 = (MÓD 1+MÓD 2+MÓD 3+MÓD 4+MÓD 5) + (CI) + (L)",null,null,null,47.5]
["P1 = P0/(1 - (pis+confins+iss))",null,null,null,52]
["T = P1 - P0",null,null,null,4.5]
["COFINS = ((cofins)/(pis+cofins+iss) x T",null,null,null,1.56]
["PIS = ((pis)/(pis+cofins+iss) x T",null,null,null,0.34]
["ISS = (iss/(pis+cofins+iss)) x T",null,null,null,2.6]

{"sheet":"Assist. Condução - H. Extra D","index":13,"n_rows":148,"n_cols":7,"rows_kept":148,"cut":false,"hidden":false,"merged":[[4,0,4,6],[5,0,5,6],[7,1,7,3],[7,4,7,6],[8,1,8,3],[8,4,8,6],[9,0,9,6],[11,1,11,4],[11,5,11,6],[12,1,12,4],[12,5,12,6],[13,1,13,4],[13,5,13,6],[14,1,14,4],[14,5,14,6],[16,0,16,6],[18,0,18,1],[18,2,18,3],[18,4,18,6],[19,0,19,1],[19,2,19,3],[19,4,19,6],[21,0,21,6],[23,0,23,6],[24,0,24,6],[26,0,26,6],[34,0,34,6],[40,0,40,6],[65,1,65,3],[67,1,67,4],[70,0,70,6],[78,0,78,6],[88,0,88,6],[107,0,107,6],[113,0,113,6],[119,0,119,6],[130,0,130,6],[140,0,140,5],[142,0,142,2],[143,0,143,2],[144,0,144,2],[145,0,145,2],[146,0,146,2],[147,0,147,2],[133,10,134,11]]}
[]
[]
[]
[]
[]
[" PLANILHA DE CUSTOS E FORMAÇÃO DE PREÇOS "]
[]
[null,{"$f":"'Ass. Adm. III'!B8","v":"Nº Processo"},null,null,{"$f":"'Ass. Adm. III'!E8","v":"59530.001233/2024-60"}]
[null,{"$f":"'Ass. Adm. III'!B9","v":"Licitação nº"}]
["DISCRIMINAÇÃO DOS SERVIÇOS (dados referentes à contratação)"]
[]
["A","Ano do Acordo, Convenção ou  Dissídio Coletivo",null,null,null,"2024 - PE000123/2024"]
["B","Município/UF",null,null,null,"Petrolina/PE"]
["C","Data de Registro no MTE",null,null,null,"20/02/2024"]
["D","Nº de meses de execução contratual",null,null,null,"12 (doze) meses"]
[]
["IDENTIFICAÇÃO DO SERVIÇO"]
[]
["Tipo de Serviço",null,"Unidade de Medida",null,"Quantidade total a contratar (em função da unidade de medida)"]
["Assistente de Condução - Hab. D - Horas Extras",null,"Hora",null,1]
[]
["1. MÓDULOS"]
[]
["MÃO DE OBRA"]
["Mão de obra vinculada à execução contratual"]
[]
["Dados para composição dos custos referente à mão de obra"]
[1,"Tipo de serviço ",{"$nulls":4},{"$f":"A20","v":"Assistente de Condução - Hab. D - Horas Extras"}]
[2,"Classificação Brasileira de Ocupações (CBO)",{"$nulls":4},"3421-25"]
[3,"Hora extra a 50%",{"$nulls":4},23.03]
[4,"Categoria profissional  (vinculada à execução contratual)",{"$nulls":4},"Administrativo"]
[5,"Data-Base da categoria (dia/mês/ano)",{"$nulls":4},"01° de janeiro"]
[]
[]
["MÓDULO  1: COMPOSIÇÃO DA REMUNERAÇÃO"]
[]
[1,"Composição da Remuneração",{"$nulls":4},"Valor (R$)"]
["A","Hora extra a 50% - Assistente de Condução",{"$nulls":4},23.03]
[null,"Total ",{"$nulls":4},23.03]
[]
["MÓDULO 2: ENCARGOS E BENEFÍCIOS ANUAIS, MENSAIS E DIÁRIOS"]
[]
["Submódulo 2.1 - 13º (décimo terceiro) Salário, Férias e Adicional de Férias"]
[]
["2.1"," 13º (décimo terceiro) Salário, Férias e Adicional de Férias",null,null,null,"%","Valor (R$)"]
["A","13º (décimo terceiro) Salário",null,null,null,0.0833,1.92]
["B","Férias e Adicional de Férias",null,null,null,0.1111,2.56]
["TOTAL",{"$nulls":4},0.1944,4.48]
[]
["Submódulo 2.2 - Encargos previdenciários (GPS), Fundo de Garantia por tempo de Serviço (FGTS) e outras contribuições:"]
[]
["2.2","GPS, FGTS e outras contribuiçoes",null,null,null,"%","Valor (R$)"]
["A","INSS",null,null,null,0.2,5.5]
["B","Salário Educação",null,null,null,0.025,0.69]
["C","Seguro Acidente do Trabalho/SAT/INSS",null,null,null,0.03,0.83]
["D","SESI/SESC",null,null,null,0.015,0.41]
["E","SENAI/SENAC",null,null,null,0.01,0.28]
["F","INCRA",null,null,null,0.002,0.06]
["G","FGTS",null,null,null,0.08,2.2]
["H","SEBRAE",null,null,null,0.006,0.17]
["TOTAL",{"$nulls":4},0.368,10.14]
[]
["Submódulo 2.3 - Benefícios Mensais e Diários"]
[]
["2.3","Benefícios Mensais e Diários",{"$nulls":4},"Valor (R$)"]
["A","Transporte ",{"$nulls":4},0]
["B","Auxílio alimentação (Cláusula 11ª CCT 2024)",{"$nulls":4},0]
["C","Outros (Cobertura Social - Cláusula 15ª CCT 2024) ",{"$nulls":4},0]
[null,"Total de Benefícios mensais e diários",{"$nulls":4},0]
[]
["QUADRO RESUMO DO MÓDULO 2 - Encargos e Benefícios anuais, mensais e diários"]
[]
[2,"Encargos e Benefícios anuais, mensais e diários",{"$nulls":4},"Valor (R$)"]
["2.1","13º (décimo terceiro) Salário, Férias e Adicional de Férias",{"$nulls":4},4.48]
["2.2","GPS, FGTS e outras contribuiçoes",{"$nulls":4},10.14]
["2.3","Benefícios Mensais e Diários",{"$nulls":4},0]
["TOTAL",{"$nulls":5},14.62]
[]
["MÓDULO 3 - PROVISÃO PARA RESCISÃO"]
[]
[3,"Provisão para Rescisão",{"$nulls":4},"Valor (R$)"]
["A","Aviso prévio indenizado",{"$nulls":4},1.02]
["B","Multa do FGTS e contribuição social sobre o Aviso Prévio Indenizado",{"$nulls":4},0.45]
["C","Aviso Prévio Trabalhado",{"$nulls":4},1.29]
["D","Multa do FGTS e contribuição social sobre o Aviso Prévio Trabalhado",{"$nulls":4},0.45]
["E","Demissão com Justa Causa",{"$nulls":4},-0.06]
["TOTAL",{"$nulls":5},3.15]
[]
["MÓDULO 4 - CUSTO DE REPOSIÇÃO DO PROFISSIONAL AUSENTE"]
[]
["Submódulo 4.1 - Ausências Legais"]
["4.1","Ausências legais",null,null,null,"Dias/Ano","Valor (R$)"]
["A","Férias ",null,null,null,20.9589,2.39]
["B","Ausência justificada",null,null,null,1,0.11]
["C","Acidente de trabalho",null,null,null,0.9659,0.11]
["D","Afastamento por doença",null,null,null,3.4932,0.4]
["E","Consulta médica filho",null,null,null,0.2688,0.03]
["F","Óbitos na família",null,null,null,0.0427,0]
["G","Casamento",null,null,null,0.0355,0]
["H","Doação de Sangue",null,null,null,0.02,0]
["I","Testemunho",null,null,null,0.004,0]
["J","Paternidade",null,null,null,0.1997,0.02]
["K","Maternidade",null,null,null,2.4753,0.28]
["L","Consulta pré-natal",null,null,null,0.0098,0]
["TOTAL",{"$nulls":4},29.4738,3.34]
[]
[]
["QUADRO RESUMO DO MÓDULO 4 - Custo de Reposição do Profissional Ausente"]
[]
[4,"Custo de Reposição do Profissional Ausente",{"$nulls":4},"Valor (R$)"]
["4.1","Ausências legais",{"$nulls":4},3.34]
["TOTAL",{"$nulls":5},3.34]
[]
["MÓDULO 5 - INSUMOS DIVERSOS"]
[]
[5,"Insumos Diversos",{"$nulls":4},"Valor (R$)"]
["A","Uniformes",{"$nulls":4},0]
[null,"Total ",{"$nulls":4},0]
[]
["MÓDULO 6 - CUSTOS INDIRETOS, TRIBUTOS E LUCRO"]
[]
[6,"Custos Indiretos, Tributos e Lucro",null,null,null,"%","Valor (R$)"]
["A","Custos Indiretos",null,null,null,0.025,1.1]
["B","Lucro",null,null,null,0.05,2.26]
["C","Tributos"]
["c.1","COFINS",null,null,null,0.03,1.56]
["c.2","PIS",null,null,null,0.0065,0.34]
["c.3","ISSQN",null,null,null,0.05,2.6]
[null,"Total",null,null,null,0.1615,7.86]
[]
["2.  QUADRO -  RESUMO DO CUSTO POR EMPREGADO"]
[]
[null,"Mão de obra vinculada à execução contratual (valor por empregado)",{"$nulls":4},"Valor (R$)"]
["A","Módulo 1 - Composição da Remuneração",{"$nulls":4},23.03]
["B","Módulo 2 - Encargos e Benefícios Anuais, Mensais e Diários",{"$nulls":4},14.62]
["C","Módulo 3 - Provisão para recisão",{"$nulls":4},3.15]
["D","Módulo 4 - Custo de Reposição do Profissional Ausente",{"$nulls":4},3.34]
["E","Módulo 5 - Insumos diversos",{"$nulls":4},0]
["Subtotal ( A + B +C + D + E)",{"$nulls":5},44.14]
["F","Módulo 6  - Custos indiretos, Tributos e lucro",{"$nulls":4},7.86]
["Valor total por Hora Extra a 50%",{"$nulls":5},52]
[]
["P0 = (MÓD 1+MÓD 2+MÓD 3+MÓD 4+MÓD 5) + (CI) + (L)",null,null,null,47.5]
["P1 = P0/(1 - (pis+confins+iss))",null,null,null,52]
["T = P1 - P0",null,null,null,4.5]
["COFINS = ((cofins)/(pis+cofins+iss) x T",null,null,null,1.56]
["PIS = ((pis)/(pis+cofins+iss) x T",null,null,null,0.34]
["ISS = (iss/(pis+cofins+iss)) x T",null,null,null,2.6]

{"sheet":"Despesas com Viagens - Diárias","index":14,"n_rows":19,"n_cols":5,"rows_kept":19,"cut":false,"hidden":false,"merged":[[6,0,6,4],[7,3,7,4],[12,1,12,3],[13,1,13,3],[14,1,14,3],[16,0,16,4],[17,0,17,4],[18,0,18,4],[7,0,8,0],[7,1,8,1],[7,2,8,2]]}
[]
[]
[]
[]
[]
[]
["Despesas com Viagens"]
["ITEM","DISCRIMINAÇÃO","QUANT.","VALOR"]
[null,null,null,"UNITÁRIO","TOTAL"]
[1,"Diária (pernoite) - 10ª CCT 2024",120,95.96,11515.2]
[2,"Diária (12hs) - 10ª CCT 2024",60,63.97,3838.2]
[3,"Diária (8hs) - 10ª CCT 2024",120,31.99,3838.8]
[2,"BDI + IMPOSTOS (21,75%)",null,null,3099.6]
[3,"TOTAL + BDI + IMPOSTOS (21,75%)",null,null,22291.8]
[4,"TOTAL + BDI + IMPOSTOS (21,75%) P/ MÊS",null,null,1857.65]
[]
["Obs.: O cálculo do quantitativo de diárias (pernoite) foi baseado na estimativa de 10 diárias por mês, durante o período de 12 meses, totalizando 120 diárias."]
["Obs.: O cálculo do quantitativo de diárias (12hs) foi baseado na estimativa de 05 diárias por mês, durante o período de 12 meses, totalizando 60  diárias (12hs)."]
["Obs.: O cálculo do quantitativo de diárias (8 hs) foi baseado na estimativa de 10 diárias por mês, durante o período de 12 meses, totalizando 120  diárias (8hs)."]